Cogmind - Beta 15 X1 @@@ ROGUE MODE // 2024.11.19 @ 22:41:56 Player: Some Pennies Result: Destroyed by B-90 Cyclops with Nova Cannon Performance ------------- Evolutions (8) 4000 Regions Visited (33) 6600 Robots Destroyed (547) 2735 Value Destroyed (29059) 29059 Prototype IDs (72) 1440 Alien Tech Used (6) 1200 Bonus (20544) 20544 TOTAL SCORE: 65578 Bonus ------- High Alert Combat Kills 6073 Follower Combat Kills 2567 Entered Garrisons 1000 Entered DSFs 500 Network Hubs Disabled 600 Met Imprinter 300 Acquired ECA 300 Met Warlord at Base 500 MAIN.C Attacked Warlord 500 Warlord Defense Kills 1750 Built Enhanced Grunts 300 Met R17 at Cetus 500 Used Core Reset Matrix 3000 Met R17 at Research 2000 Scanned by Researcher 500 Pursued by Intercept 500 Met Sigix 2000 Friendly Fire -2346 Cogmind --------- Core Integrity 0/1450 Matter 159/300 Energy 99/100 System Corruption 1% Temperature Cool (9) Movement Core (50) Location -2/Garrison Parts ------- > --- POWER (3) -------- (None) > --- PROPULSION (6) --- (None) > --- UTILITY (12) ----- Experimental Targeting Computer Graphene Brace Advanced Hacking Suite Spacefold Activator > --- WEAPON (2) ------- (None) > --- INVENTORY (5) ---- Compact HERF Cannon EMDS Peak State ------------ > --- POWER ------------ Antimatter Reactor Micro Antimatter Reactor Matter Drive > --- PROPULSION ------- Improved Heavy Siege Treads High-density Centrium Heavy Treads High-density Centrium Heavy Treads > --- UTILITY ---------- Experimental Cooling System Cargo Storage Unit Advanced Signal Interpreter Experimental Targeting Computer Experimental Phase Shifter Centrium Heavy Armor Plating Experimental EM Disruption Field Experimental Force Field > --- WEAPON ----------- Improved Matter Neutralizer Graviton Cannon > --- INVENTORY -------- Vortex Chain Reactor High-density Centrium Heavy Treads High-density Centrium Heavy Treads Advanced Sensor Array Long-range Terrain Scanner Transmission Jammer Experimental Weapon Shielding Layered Medium Armor Plating Graphene Brace Advanced Force Field Hacking Suite Advanced Hacking Suite Advanced Hacking Suite Advanced Hacking Suite Ghost Barrier Advanced Dynamic Insulation System Cooled Phase Gun Cooled Phase Gun Vortex Rail Vortex Rail Compact HERF Cannon EMDS Heavy Phase Cannon Helical Railgun Multitool Plasma Lance [Rating: 194] Favorites ----------- Power Quantum Reactor Engine Makeshift Power Source Power Core Neutrino Core Reactor Quantum Reactor Propulsion Light Treads Treads Light Treads Leg Titanium Leg Wheel Compact Wheel Hover Unit Cooled Antigrav System Flight Unit Cooled VTOL Module Utility Advanced Signal Interpreter Device Advanced Heat Sink Storage Huge Storage Unit Processor Advanced Signal Interpreter Hackware Advanced Hacking Suite Protection Layered Medium Armor Plating Artifact Spacefold Activator Weapon Heavy Phase Cannon Energy Gun Heavy Particle Gun Energy Cannon Heavy Phase Cannon Ballistic Gun Advanced KE Penetrator Ballistic Cannon Enhanced Gauss Cannon Launcher Long-range Missile Launcher Special Weapon Multitool Impact Weapon Powered Hammer Slashing Weapon Great Axe Piercing Weapon Lance Special Melee Weapon Improved Datajack Build | -11 -10 -10 -8 -8 -8 -7 -7 -7 -7 -6 -6 -6 -6 -6 -6 -6 -6 -5 -5 -5 -5 -5 -5 -4 -4 -4 -4 -3 -3 -3 -3 -2 -2 ------- Run | Yrd Mat Sub Mat Gar Mat Fac Low Low Zio Pro Fac Gar Fac Ext Cet Arc Hub Fac Gar Fac Gar Fac DSF Fac Upp Upp War Pro Res Qua Sec Res Gar Slots Evolved 16 | . . . 4 . . 2 . . . . 2 . . . . . . 2 . . . . . 2 . . . . 2 . . 2 . Power 2 | . . . . . . 1 . . . . . . . . . . . . . . . . . . . . . . 1 . . . . Propulsion 4 | . . . 2 . . . . . . . 1 . . . . . . . . . . . . 1 . . . . . . . . . Utility 10 | . . . 2 . . 1 . . . . 1 . . . . . . 2 . . . . . 1 . . . . 1 . . 2 . Weapon . | . . . . . . . . . . . . . . . . . . . . . . . . . . . . . . . . . . Parts Attached 493 | 7 12 8 15 33 12 25 11 7 10 22 12 27 18 9 13 18 14 26 43 21 15 1 3 12 19 9 8 7 18 27 10 1 . Power 67 | 1 3 1 2 4 2 4 3 1 2 4 2 4 3 3 3 1 3 2 6 2 1 . . 2 1 . 1 . 2 3 1 . . Engine 31 | 1 2 . 2 3 1 2 1 1 2 3 . 3 3 3 . . . 1 1 1 1 . . . . . . . . . . . . Core 18 | . 1 1 . 1 1 2 2 . . 1 2 . . . . 1 . 1 2 1 . . . 1 . . . . 1 . . . . Reactor 18 | . . . . . . . . . . . . 1 . . 3 . 3 . 3 . . . . 1 1 . 1 . 1 3 1 . . Propulsion 124 | 2 3 1 4 14 7 4 4 1 1 6 3 9 7 . 2 3 3 8 9 3 5 1 . 5 3 2 2 . 4 5 2 1 . Treads 74 | 2 . . . 11 7 4 2 1 . 4 1 9 1 . 2 2 2 4 2 1 4 . . 1 2 2 . . 3 4 2 1 . Leg 23 | . 2 1 1 . . . 2 . 1 2 1 . . . . 1 1 3 7 . . . . . . . . . . 1 . . . Wheel 18 | . 1 . 3 3 . . . . . . 1 . . . . . . . . 2 1 1 . 4 1 . . . 1 . . . . Hover 1 | . . . . . . . . . . . . . . . . . . . . . . . . . . . 1 . . . . . . Flight 8 | . . . . . . . . . . . . . 6 . . . . 1 . . . . . . . . 1 . . . . . . Utility 196 | 2 3 1 6 4 2 11 3 2 2 7 5 10 7 5 5 10 6 8 21 14 3 . 1 4 10 5 3 6 8 15 7 . . Device 93 | 1 1 1 3 . 1 2 3 1 2 3 3 5 1 1 1 7 4 5 11 5 1 . . 1 6 3 3 4 2 10 2 . . Storage 18 | 1 2 . 1 . . 2 . . . . . . 1 1 . 1 . 1 5 2 . . . . . 1 . . . . . . . Processor 15 | . . . . 1 . 1 . . . 1 . 1 2 . . 1 1 . 1 . . . . . 2 . . . 3 1 . . . Hackware 20 | . . . 1 . . . . . . . 2 1 2 . . . . 1 1 3 . . 1 3 . . . . 1 . 4 . . Protection 49 | . . . 1 3 1 6 . 1 . 3 . 3 1 3 4 1 1 1 3 4 2 . . . 2 1 . 2 2 4 . . . Artifact 1 | . . . . . . . . . . . . . . . . . . . . . . . . . . . . . . . 1 . . Weapon 106 | 2 3 5 3 11 1 6 1 3 5 5 2 4 1 1 3 4 2 8 7 2 6 . 2 1 5 2 2 1 4 4 . . . Energy Gun 39 | . 3 2 1 8 . 3 . 1 2 1 . . . . 1 1 . 6 4 1 1 . . . 2 . 1 . 1 . . . . Energy Cannon 21 | . . 1 1 . . 1 1 . . 2 . . . . . 1 2 1 1 1 2 . 1 . 1 1 1 . 1 2 . . . Ballistic Gun 20 | 2 . 1 1 . . 1 . 1 1 . . 1 . 1 2 1 . . 1 . 3 . . 1 . 1 . . 2 . . . . Ballistic Cannon 9 | . . . . 1 . 1 . 1 . . . 2 . . . . . . . . . . 1 . 2 . . . . 1 . . . Launcher 4 | . . . . 1 1 . . . . . 1 . . . . . . . 1 . . . . . . . . . . . . . . Special Weapon 4 | . . 1 . . . . . . . 1 1 . . . . . . 1 . . . . . . . . . . . . . . . Impact Weapon 3 | . . . . . . . . . 1 1 . . . . . . . . . . . . . . . . . . . 1 . . . Slashing Weapon 1 | . . . . 1 . . . . . . . . . . . . . . . . . . . . . . . . . . . . . Piercing Weapon 2 | . . . . . . . . . . . . 1 . . . . . . . . . . . . . . . 1 . . . . . Special Melee Weapon 3 | . . . . . . . . . 1 . . . 1 . . 1 . . . . . . . . . . . . . . . . . Unidentified Prototypes 56 | . . . . . . 4 1 . 1 . . 1 1 . 5 4 6 3 . 4 . . . . . . 7 2 6 9 2 . . Corrupted Parts 17 | . . . . . . . . 1 . 9 . . . . 3 1 . 2 . . . . . . . . . . . . 1 . . System Corruption 94 | . . . . . . . . 1 . 52 . . . . 20 3 . 12 . . . . . . . . . . . . 6 . . Parts Lost 119 | . 4 6 2 1 2 7 7 1 . 15 1 2 5 2 . . 5 10 8 3 10 . 3 1 2 . 1 2 3 1 8 1 6 Power 19 | . 1 1 1 . 1 2 1 . . 1 . . 1 . . . 2 . 3 1 2 . . . . . . . . . 2 . . Propulsion 42 | . 1 2 1 . . 3 5 1 . 6 1 2 1 . . . 1 4 1 . 3 . 2 . 2 . . . 1 1 1 1 2 Utility 40 | . 1 1 . 1 . 2 1 . . 3 . . 2 1 . . 2 3 3 2 3 . 1 1 . . 1 2 2 . 4 . 4 Weapon 18 | . 1 2 . . 1 . . . . 5 . . 1 1 . . . 3 1 . 2 . . . . . . . . . 1 . . Highest Loss Streak 8 | . 2 6 1 1 2 2 4 1 . 8 1 1 5 1 . . 1 8 2 2 4 . 3 1 1 . 1 2 2 1 6 1 6 To Critical Strikes 1 | . . . . . . . . . . 1 . . . . . . . . . . . . . . . . . . . . . . . Average Backups 21 | 4 14 15 16 18 18 18 20 21 21 21 22 20 15 20 21 21 20 20 19 23 22 21 26 25 27 28 27 27 26 25 24 2 1 Power 1 | . 1 . 1 1 1 1 . . . . 1 1 . 1 1 1 1 1 . . 1 1 1 1 2 2 2 2 1 1 . . . Propulsion 1 | 1 3 3 3 2 2 1 2 . . . 1 2 3 6 6 2 . . 2 3 2 1 4 . 1 1 2 2 2 2 1 . . Utility 10 | . 3 3 2 8 8 8 8 9 12 12 12 11 6 7 8 11 11 9 9 11 11 12 14 14 15 16 15 15 14 12 13 . . Weapon 5 | 1 5 6 7 5 5 5 5 8 6 4 4 4 3 3 4 5 5 5 5 5 4 4 4 5 6 6 6 6 7 9 7 2 1 Tool/Special . | . . . . . . . . . . . . . . . . . . . . . . . . . . . . . . . . . . Unused Backups 97 | . 3 . 4 12 4 7 . 4 1 2 6 12 5 . 2 3 4 2 8 2 . . 1 1 . 2 3 . 4 . 5 . . Power 17 | . . . 1 4 2 2 . . . . 1 2 . . 1 1 . 1 1 . . . . 1 . . . . . . . . . Propulsion 14 | . . . 1 2 1 . . . . . 1 2 4 . . . . . 1 1 . . . . . . . . . . 1 . . Utility 44 | . 2 . . 3 1 3 . 1 1 2 4 6 1 . 1 1 2 . 6 1 . . 1 . . 2 2 . 3 . 1 . . Weapon 18 | . . . 2 2 . 1 . 3 . . . 2 . . . 1 2 . . . . . . . . . 1 . 1 . 3 . . Tool/Special 4 | . 1 . . 1 . 1 . . . . . . . . . . . 1 . . . . . . . . . . . . . . . Average Slot Usage (%) 85 | . 99 98 98 99 99 94 77 78 82 79 97 90 82 85 84 85 83 86 88 79 77 79 81 88 82 83 81 71 77 76 68 44 36 Engine 4 | . 6 . 5 8 5 10 3 5 13 10 8 6 5 8 5 . . . . 1 3 11 11 6 1 . . . . . . . . Core 2 | . 7 13 2 . 3 2 9 8 1 3 3 3 . . . 3 2 2 . 5 8 . . . . . . . 1 . . . . Reactor 4 | . . . . . . . . . . . . 2 4 4 6 8 9 7 7 1 . . . 2 8 10 8 5 7 9 8 . . Treads 16 | . 18 2 . 31 36 29 22 11 7 5 23 26 13 20 20 19 16 13 5 8 11 5 5 6 12 20 20 21 9 18 13 9 5 Leg 5 | . 4 11 14 . . . 4 14 21 21 4 . . . . . 2 10 16 4 . . . . . . . . . . . . . Wheel 2 | . 5 14 21 3 . . . . . . 2 2 . . . . . . . 3 4 8 10 19 10 . . . 8 . . . . Device 14 | . 14 13 16 9 9 9 10 13 15 12 19 14 12 13 13 14 8 17 17 14 10 11 10 3 14 20 20 13 16 17 16 8 6 Storage 6 | . 14 14 9 9 9 7 7 7 7 7 6 6 6 6 6 6 6 5 5 5 5 5 5 5 5 5 5 5 4 4 3 . . Processor 5 | . . . . 4 9 7 . . . . 6 2 9 6 6 11 15 9 5 5 5 5 5 5 5 5 5 5 4 9 8 4 4 Hackware 2 | . . . 8 1 . . . . . . . 5 3 3 . . . 1 3 6 11 11 11 22 5 5 5 5 6 . . 17 14 Protection 4 | . . . 1 11 8 8 . . . 1 5 5 3 8 11 5 7 3 8 4 4 5 5 5 5 5 4 5 5 5 4 . . Energy Gun 3 | . 17 20 4 6 17 14 7 1 . 4 4 . . . . . . 3 4 5 1 . 3 . . . . . 1 . . . . Energy Cannon 4 | . . 2 4 5 . . 6 7 11 6 4 2 2 6 1 . 1 . 4 3 2 . . 5 9 9 2 9 5 4 6 . . Ballistic Gun 2 | . 10 4 8 . . . . 3 1 1 . 1 4 5 4 9 9 1 . . 3 7 2 3 . . . . . 2 . . . Peak Build Rating 194 | 9 13 14 28 32 35 44 61 64 73 68 65 90 91 90 120 120 130 132 135 117 111 87 95 104 109 114 129 125 158 194 187 104 100 Average Rating 85 | 7 12 13 24 30 34 41 56 62 65 59 60 67 77 86 106 112 118 106 116 105 97 85 88 99 100 109 111 119 143 160 171 96 75 On Entrance 78 | . 9 13 14 28 30 35 31 59 62 66 50 64 89 87 82 112 113 116 105 117 94 82 86 80 99 102 110 121 113 149 179 86 92 Naked Turns . | . . . . . . . . . . . . . . . . . . . . . . . . . . . . . . . . . . Heaviest Build 264 | 14 49 52 61 71 66 122 126 120 121 126 135 145 137 139 148 148 149 146 208 208 205 190 202 199 216 216 227 228 239 264 257 3 3 Greatest Support 255 | 40 40 16 40 80 80 80 88 48 54 91 91 180 170 170 180 180 188 188 150 150 180 44 44 64 168 186 186 186 186 255 255 3 3 Greatest Overweight (x) 78 | . 3 3 2 1 . 1 3 7 3 31 4 6 4 . . 44 . 6 1 7 6 6 7 3 6 6 1 1 6 78 1 . . Average Overweight (x) 1 | . 1 2 1 . . . 1 2 2 1 1 1 . . . 6 . 1 . 1 2 4 4 2 4 1 1 1 5 1 . . . Largest Inventory Capacity 30 | 8 20 20 20 20 20 25 25 25 25 25 25 25 25 25 25 25 25 25 30 30 30 30 30 30 30 30 30 30 30 30 30 5 5 Average Capacity 25 | 7 16 20 20 20 20 21 25 25 25 25 25 25 20 25 25 25 25 25 23 30 30 30 30 30 30 30 30 30 30 30 29 5 5 Most Carried 30 | 6 19 19 20 20 20 25 25 25 25 25 25 25 25 25 25 25 25 25 30 30 30 27 30 30 30 30 30 30 30 30 30 5 3 Average Carried 24 | 4 14 15 17 19 19 21 23 24 24 24 24 23 18 24 24 24 24 23 23 29 26 24 28 27 28 29 29 28 27 29 28 3 2 Final Capacity 30 | 8 20 20 20 20 20 25 25 25 25 25 25 25 25 25 25 25 25 25 30 30 30 30 30 30 30 30 30 30 30 30 5 5 5 Final Carried 30 | 6 19 17 20 20 20 25 25 25 25 24 25 23 25 25 25 25 25 25 30 30 21 26 30 29 30 30 29 28 29 30 5 3 3 Class Distribution -------------------- 49% | Scavenger-Mutant 22% | Hauler-Mutant 19% | Mutant 3% | Derelict-Mutant Dominant Class ---------------- Mutant | -10/Materials Mutant | -10/Subcaves Scavenger-Mutant | -8/Materials Scavenger-Mutant | -8/Garrison Mutant | -8/Materials Scavenger-Mutant | -7/Factory Scavenger-Mutant | -7/Lower Caves Mutant | -7/Lower Caves Mutant | -7/Zion Derelict-Mutant | -6/Proximity Caves Scavenger-Mutant | -6/Factory Scavenger-Mutant | -6/Garrison Scavenger-Mutant | -6/Factory Scavenger-Mutant | -6/Extension Scavenger-Mutant | -6/Cetus Scavenger-Mutant | -6/Archives Scavenger-Mutant | -6/Hub_04(d) Scavenger-Mutant | -5/Factory Scavenger-Mutant | -5/Garrison Scavenger-Mutant | -5/Factory Scavenger-Mutant | -5/Garrison Hauler-Mutant | -5/Factory Scavenger-Mutant | -5/DSF Wizard-Mutant | -4/Factory Hauler-Mutant | -4/Upper Caves Hauler-Mutant | -4/Upper Caves Hauler-Mutant | -4/Warlord Hauler-Mutant | -3/Proximity Caves Hauler-Mutant | -3/Research Scavenger-Mutant | -3/Quarantine Hauler-Mutant | -3/Section 7 Wizard-Mutant | -2/Research Wizard-Mutant | -2/Garrison Resources | -11 -10 -10 -8 -8 -8 -7 -7 -7 -7 -6 -6 -6 -6 -6 -6 -6 -6 -5 -5 -5 -5 -5 -5 -4 -4 -4 -4 -3 -3 -3 -3 -2 -2 ----------- Run | Yrd Mat Sub Mat Gar Mat Fac Low Low Zio Pro Fac Gar Fac Ext Cet Arc Hub Fac Gar Fac Gar Fac DSF Fac Upp Upp War Pro Res Qua Sec Res Gar Matter Collected 16465 | 326 280 103 253 1001 245 278 705 1042 124 1144 221 1187 462 421 359 406 985 962 1172 502 696 235 91 250 410 258 310 257 388 910 482 . . Remotely . | . . . . . . . . . . . . . . . . . . . . . . . . . . . . . . . . . . Salvage Created 29567 | 162 800 86 278 2645 1826 1231 356 602 . 1126 449 1706 763 541 143 414 1741 1405 2796 1666 866 266 73 341 901 488 477 509 307 2348 2255 . . Parts 1252 | 8 40 1 15 131 76 53 25 15 . 35 14 68 32 27 7 26 96 73 122 49 35 12 2 21 27 18 10 35 7 95 77 . . Haulers Intercepted 17 | . 2 . . . 4 . . . . . 1 . 1 . . . 1 . . 4 . . . 1 . . . . 1 . 2 . . Recyclers Shooed 17 | . 3 . 1 . 3 2 . . . . 1 . . 4 . . . 2 . . . . . . . . . . . . 1 . . Parts Field Recycled . | . . . . . . . . . . . . . . . . . . . . . . . . . . . . . . . . . . Retrieved Matter . | . . . . . . . . . . . . . . . . . . . . . . . . . . . . . . . . . . Parts Self-Destructed 127 | . . 2 . . . . 17 14 . 13 . . . . . . . . . . . . . . 26 27 . 28 . . . . . Prevented 23 | . . . . . . . . . . 22 . . . . . . . . . . . . . . 1 . . . . . . . . Kills | -11 -10 -10 -8 -8 -8 -7 -7 -7 -7 -6 -6 -6 -6 -6 -6 -6 -6 -5 -5 -5 -5 -5 -5 -4 -4 -4 -4 -3 -3 -3 -3 -2 -2 ------- Run | Yrd Mat Sub Mat Gar Mat Fac Low Low Zio Pro Fac Gar Fac Ext Cet Arc Hub Fac Gar Fac Gar Fac DSF Fac Upp Upp War Pro Res Qua Sec Res Gar Combat Hostiles Destroyed 437 | . 13 2 10 39 27 21 17 8 . 16 7 22 4 9 1 1 22 17 37 27 31 . 1 3 10 9 12 14 3 27 27 . . Melee 23 | . . . . . . . . . . 2 . 7 1 . . . . 9 . 2 2 . . . . . . . . . . . . Guns 144 | . 13 1 6 8 23 21 1 3 . 9 . 2 1 2 1 1 19 4 7 4 6 . 1 2 . . . . . 9 . . . Cannons 136 | . . 1 3 25 . . 2 4 . 1 1 13 2 7 . . 2 2 9 7 3 . . 1 10 6 . 7 3 13 14 . . AOE 87 | . . . . 4 4 . 14 . . . 4 . . . . . . . 10 11 18 . . . . 3 12 7 . . . . . Classes Destroyed 27 | 3 6 2 1 5 1 . 1 . . 2 . 1 . . . . . 1 . . . . . . . . 1 . . 1 2 . . Worker 19 | 1 3 . . . 2 . . . . . . . 1 . . . 5 . . 3 . . . . . . . . . 1 3 . . Builder 11 | . 1 . 1 . . . . . . . . . . 4 . . . . . . . 1 . 1 . . . . . 1 2 . . Tunneler 6 | 3 . . . . 1 1 . . . . . . . . . . . . . 1 . . . . . . . . . . . . . Hauler 17 | . 2 . . . 4 . . . . . 1 . 1 . . . 1 . . 4 . . . 1 . . . . 1 . 2 . . Recycler 18 | 1 2 . . . 3 3 . . . . 1 . 3 . . . . 2 . . . 2 . . . . . . . 1 . . . Minesweeper 1 | . . . . . . . . . . 1 . . . . . . . . . . . . . . . . . . . . . . . Mechanic 4 | . . . . . 2 . . . . . . . . . . . . 1 . . . . . . . . . . . 1 . . . Operator 18 | . 1 . . . 1 1 . . . . 1 . 1 . . 9 1 1 1 . . . . 1 . . . . . . . . . Watcher 13 | . 1 . . 1 3 . . . . . . . . . . . 2 . . 3 . . . . . . . . . 2 1 . . Swarmer 86 | . 3 . 7 2 . 3 10 2 . . 4 3 . . . . 2 . 10 4 19 . . . . 3 . 9 1 . 4 . . Cutter 1 | . . . . . . . . . . . . . . . . . . . . . . . . . . . . . . . 1 . . Grunt 170 | . 10 . 2 12 19 11 6 4 . 9 2 8 2 5 . . 3 . 13 13 9 . . 1 3 5 6 . 2 11 14 . . Brawler 13 | . . . . 2 1 . . . . 3 . . . . . . 1 . . 3 . . . . 2 . 1 . . . . . . Duelist 14 | . . . . 4 1 . . . . 2 . 1 . . . . . . . . 1 . . . 2 . 1 . . 2 . . . Protector 4 | . . . . . . . . . . 1 . . . . . . 2 . . 1 . . . . . . . . . . . . . Researcher 2 | . . . . . . . . . . . . . . . . . . . . . . . . . . . . . . . 2 . . Sentry 42 | . . . 1 9 4 3 1 1 . 1 . 5 1 2 . 1 4 . 6 . . . . . 1 . . 1 . . 1 . . Specialist 11 | . . . . 3 . . . . . . . . . . . . 1 2 2 . . . 1 . . . . . . . 2 . . Hunter 20 | . . . . 1 2 . . . . . . 1 . 1 . . . 2 3 . 1 . . 2 1 . . . . 4 2 . . Programmer 55 | . . . . 6 . 4 . 1 . . 1 3 1 1 . . 1 11 2 6 . . . . . 1 3 3 . 9 2 . . Heavy 1 | . . . . . . . . . . . . . . . . . . 1 . . . . . . . . . . . . . . . Behemoth 5 | . . . . . . . . . . . . 1 . . . . 1 . 1 . 1 . . . . . . 1 . . . . . Cetus Guard 1 | . . . . . . . . . . . . . . . 1 . . . . . . . . . . . . . . . . . . Lightning 6 | . . . . . . . . . . . . . . . . . 6 . . . . . . . . . . . . . . . . Combat Programmer 1 | . . . . . . . . . . . . . . . . . . . . . . . . . . . . . . . 1 . . Executioner 1 | . . . . . . . . . . . . . . . . . . . . . . . . . . . 1 . . . . . . Fortress 1 | . . . . . . . . . . . . . . . . . . . . . . . . . . . . . . 1 . . . Artisan 1 | . . 1 . . . . . . . . . . . . . . . . . . . . . . . . . . . . . . . Subdweller 2 | . . 2 . . . . . . . . . . . . . . . . . . . . . . . . . . . . . . . Decomposer 1 | . . . . . . . . . . 1 . . . . . . . . . . . . . . . . . . . . . . . Packrat 1 | . . . . . . . . . . . . . . . . . . . . . . . . . 1 . . . . . . . . Samaritan 6 | . . . . . . . 2 4 . . . . . . . . . . . . . . . . . . . . . . . . . Thug 2 | . . . . . . . . . . . . . . . . . 1 1 . . . . . . . . . . . . . . . Butcher 1 | . . . . . . . . . . . . . . . . . . . . . . . . . 1 . . . . . . . . Best Kill Streak 12 | 3 7 2 5 8 6 5 12 4 . 8 7 4 2 2 1 2 4 7 5 11 5 2 1 4 4 3 12 5 2 5 10 . . Combat Bots Only 12 | . 5 2 5 8 4 4 12 4 . 8 6 4 2 2 1 1 4 7 5 8 5 . 1 1 4 3 12 5 2 4 7 . . Max Kills in Single Turn 5 | 1 1 1 1 2 2 1 4 1 . 1 3 1 1 1 1 1 3 2 3 4 4 1 1 1 1 2 5 3 1 1 1 . . Gunslinging 1 | . . . . 1 . . . . . . . . . . . . 1 . . . . . . . . . . . . . . . . Exploded 5 | . . . . 1 2 . 4 . . . 3 . . . . . . . 3 3 4 . . . . 2 5 3 . . . . . Melee 1 | . . . . . . . . . . 1 . 1 1 . . . . 1 . 1 1 . . . . . . . . . . . . Uniques/NPCs Destroyed 1 | . . . . . . . . . . . . . . . 1 . . . . . . . . . . . . . . . . . . A7 (-6/Cetus) Combat | -11 -10 -10 -8 -8 -8 -7 -7 -7 -7 -6 -6 -6 -6 -6 -6 -6 -6 -5 -5 -5 -5 -5 -5 -4 -4 -4 -4 -3 -3 -3 -3 -2 -2 -------- Run | Yrd Mat Sub Mat Gar Mat Fac Low Low Zio Pro Fac Gar Fac Ext Cet Arc Hub Fac Gar Fac Gar Fac DSF Fac Upp Upp War Pro Res Qua Sec Res Gar Hostile Shots Fired 3600 | . 54 34 49 142 79 226 60 82 . 132 9 266 32 96 23 2 197 287 246 159 252 . 70 52 27 30 26 112 48 248 412 14 134 Missed 986 | . 10 5 13 47 24 88 16 25 . 27 4 88 9 27 12 2 55 60 65 25 67 . 13 16 11 10 11 21 12 71 92 6 54 Deflected 16 | . . . . . . . . . . . . . . . . . . . 16 . . . . . . . . . . . . . . Damage Taken 41853 | . 659 645 447 1545 989 2052 918 793 . 2254 79 1792 555 977 310 . 3201 2948 2692 2045 3720 142 1244 752 371 204 291 1345 447 2002 4133 203 2098 Core 4740 | . 78 162 71 168 52 131 130 50 . 182 15 151 111 79 27 . 185 276 122 91 362 . 73 103 21 2 . 118 55 137 336 52 1400 Absorbed by Shields 6111 | . . . . 43 . . . . . . . 467 18 116 55 . . 189 600 366 . . . . 37 200 295 848 419 1227 1231 . . Reduced by Siege Mode 991 | . . . . . . . . . . . . . . . . . 148 255 . 130 60 . . . 12 10 . 85 . 92 199 . . Redirected to Shielding 127 | . . . . . . . . . . . . . . . . . 13 95 19 . . . . . . . . . . . . . . Ignored by Resistances 5203 | . . . . . . . . . . . . . . 19 . . 610 1456 281 339 . . . . . 31 . 362 . 820 1285 . . Regen/Repaired (Parts) 263 | . . . . . . . . . . . . . 56 . . . . . . . . . . . . . 207 . . . . . . Core Remaining (%) 44 | 100 . 4 . . 47 . . . . 29 . . . . . . 33 . . . . . 7 . . . . 78 . . 59 . . Volleys Fired 1612 | 14 68 15 31 180 77 89 28 45 . 54 36 86 15 38 18 4 91 44 116 70 69 . 11 17 40 25 7 40 37 103 143 . 1 Largest 2 | 2 2 2 2 2 2 2 2 2 . 2 2 2 2 2 2 2 2 2 2 2 2 . 2 2 2 2 1 2 2 2 2 . 1 Hottest 233 | 40 85 125 100 160 160 160 135 135 . 165 146 146 98 112 70 70 170 150 208 208 189 . 92 125 180 180 45 180 180 233 207 . 94 Shots Fired 2714 | 28 136 28 58 284 148 179 45 88 . 102 53 144 29 73 22 9 169 57 204 125 83 . 21 33 80 46 7 77 61 179 145 . 1 Gun 1351 | 28 136 18 37 77 145 176 16 39 . 47 17 17 14 30 18 9 150 37 103 60 43 . 21 16 . . 1 10 20 66 . . . Cannon 1295 | . . 9 17 200 . 3 17 49 . 52 34 127 15 43 4 . 19 19 97 61 26 . . 17 80 43 . 63 41 113 145 . 1 Launcher 59 | . . . . 7 3 . 12 . . . 2 . . . . . . . 4 4 14 . . . . 3 6 4 . . . . . Special 9 | . . 1 4 . . . . . . 3 . . . . . . . 1 . . . . . . . . . . . . . . . Kinetic 702 | 28 77 2 27 73 . . . 30 . 4 . 95 24 35 19 9 137 17 . . 20 . 11 16 . . . . 10 66 2 . . Thermal 1474 | . 59 26 31 153 98 179 33 58 . 26 51 49 5 38 3 . 27 17 52 121 41 . 10 17 80 43 . 63 51 98 45 . . Explosive 52 | . . . . . 3 . 12 . . . 2 . . . . . . . 4 4 14 . . . . 3 6 4 . . . . . Electromagnetic 474 | . . . . 58 47 . . . . 72 . . . . . . 5 22 148 . 8 . . . . . . . . 15 98 . 1 Entropic 11 | . . . . . . . . . . . . . . . . . . . . . . . . . . . 1 10 . . . . . Robot Hit Streak 31 | 5 17 19 10 24 19 31 5 10 . 11 6 17 6 10 4 5 16 13 10 12 19 . 5 12 14 12 3 24 15 22 17 . . Robot Miss Streak 8 | 4 5 1 4 3 5 4 3 3 . 4 3 3 2 2 3 2 8 2 6 2 3 . 3 1 2 2 1 4 3 4 3 . . Penetration Max 1 | . . . . . . . . . . . . 1 1 1 1 . 1 1 . . 1 . . 1 . . . . . 1 1 . . Secondary Targets 14 | . 2 . 2 2 2 2 . . . . . . . . . . 2 . . . . . . . . . . . . 2 . . . Max Gunslinging Chain 1 | . 1 . 1 1 1 1 . . . . . . . . . . 1 . . . . . . . . . . . . 1 . . . Capacitor 58 | . . . . . . . . . . . . . . . . . . 12 . . . . . . . . . . . . 46 . . Shots Hit Robots 1944 | 13 89 25 32 197 113 135 25 52 . 78 28 141 25 46 23 21 105 73 135 94 57 3 15 26 54 28 3 55 27 125 101 . . Core Hits 1031 | 6 38 6 13 107 99 64 36 20 . 42 11 52 16 21 9 12 52 28 71 58 41 2 2 13 20 14 46 23 8 59 41 . 1 Critical Kills 29 | . . . 1 . . . . 1 . 2 . . . . . 1 12 2 2 4 1 . . . . . . . . 2 1 . . Critical Parts Destroyed 13 | . . . . . . . . . . . 1 . . . 2 1 4 1 . 2 . . . . . . . 1 . 1 . . . Critical Strikes 100 | . . . 1 5 . 7 . 1 . 3 2 16 1 1 5 5 16 10 6 7 3 1 . . . . . 1 . 4 5 . . Burn 11 | . . . . 1 . 7 . . . . 1 . . . . . . 1 . 1 . . . . . . . . . . . . . Meltdown 8 | . . . 1 . . . . 1 . . . . . . . . . . . 3 1 . . . . . . . . 1 1 . . Destroy 33 | . . . . . . . . . . . . . . . 4 3 16 3 2 3 . . . . . . . . . 2 . . . Blast 17 | . . . . 3 . . . . . . . 13 . 1 . . . . . . . . . . . . . . . . . . . Corrupt 13 | . . . . 1 . . . . . 1 . . . . . . . 1 3 . 2 . . . . . . . . 1 4 . . Smash 3 | . . . . . . . . . . 2 1 . . . . . . . . . . . . . . . . . . . . . . Impale 14 | . . . . . . . . . . . . 3 1 . 1 2 . 5 1 . . 1 . . . . . . . . . . . Detonate 1 | . . . . . . . . . . . . . . . . . . . . . . . . . . . . 1 . . . . . Melee Attacks 232 | . . . . 1 . . . . . 11 4 67 15 . 9 16 3 53 22 8 4 6 3 1 . . 3 . . 4 2 . . Kinetic 2 | . . . . . . . . . . . . . . . . . . . . . . . . . . . . . . 2 . . . Impact 11 | . . . . . . . . . . 8 3 . . . . . . . . . . . . . . . . . . . . . . Slashing 1 | . . . . 1 . . . . . . . . . . . . . . . . . . . . . . . . . . . . . Piercing 212 | . . . . . . . . . . . . 67 15 . 9 14 3 53 22 8 4 6 3 1 . . 3 . . 2 2 . . Sneak Attacks 38 | . . . . . . . . . . 3 1 . 4 . 9 16 . 1 . . . 3 . 1 . . . . . . . . . Combat Hostiles . | . . . . . . . . . . . . . . . . . . . . . . . . . . . . . . . . . . Follow-up Attacks . | . . . . . . . . . . . . . . . . . . . . . . . . . . . . . . . . . . Damage Inflicted 69614 | 161 1096 362 633 4961 3065 2662 1858 1263 . 1810 950 5457 1036 1492 1010 1190 3242 2558 5989 5326 3697 202 278 830 1546 1125 2599 2950 960 4637 4655 . 14 Guns 19880 | 161 1086 240 384 817 2343 2586 169 511 . 869 218 308 236 489 466 128 2478 567 1514 1073 529 . 233 298 . . . 338 223 1616 . . . Cannons 28754 | . . 122 249 3456 . . 377 752 . 741 406 2623 219 739 86 . 440 730 1914 1792 1030 . . 477 1546 904 . 1821 726 2977 4627 . . Explosions 12229 | . . . . 688 722 74 1312 . . 21 231 . . . . . 236 . 1058 2229 2047 . . . . 221 2599 791 . . . . . Melee 8228 | . . . . . . . . . . 140 95 2526 577 . 458 1062 . 1261 1496 194 78 202 45 55 . . . . . 39 . . . Ramming 485 | . 10 . . . . 2 . . . 1 . . 4 264 . . 88 . 7 38 13 . . . . . . . 11 5 28 . 14 Kinetic 11093 | 161 567 14 306 1148 . . . 345 . 68 . 1952 372 570 500 128 2064 308 . . 218 . 99 298 . . . . 197 1655 123 . . Thermal 28179 | . 519 348 327 2763 2031 2660 546 918 . 355 624 979 83 658 52 . 725 240 1082 3069 887 . 134 477 1546 904 . 1880 752 2315 1305 . . Explosive 10365 | . . . . . 489 . 1312 . . . 231 . . . . . . . 709 2025 2047 . . . . 221 2599 732 . . . . . Electromagnetic 10965 | . . . . 1050 545 . . . . 1246 . . . . . . 365 749 2695 . 454 . . . . . . . . 662 3199 . . Impact 235 | . . . . . . . . . . 140 95 . . . . . . . . . . . . . . . . . . . . . . Slashing . | . . . . . . . . . . . . . . . . . . . . . . . . . . . . . . . . . . Piercing 7954 | . . . . . . . . . . . . 2526 577 . 458 1062 . 1261 1496 194 78 202 45 55 . . . . . . . . . Entropic 338 | . . . . . . . . . . . . . . . . . . . . . . . . . . . . 338 . . . . . Highest Corruption 64 | . . . . 4 4 13 13 15 15 64 . . . 1 21 21 18 16 16 21 21 22 22 . . 1 1 4 . 3 15 . 1 Average Corruption 11 | . . . . 2 4 2 13 14 15 18 . . . 1 16 10 17 13 15 14 21 21 22 . . 1 1 3 . 2 6 . 1 Corruption Purged 37 | . . . . . . 1 . . . . . . . . . 24 . 5 5 . . . . . . . . . . 2 . . . Corruption Blocked . | . . . . . . . . . . . . . . . . . . . . . . . . . . . . . . . . . . Effects 755 | . . . . 16 37 21 52 90 7 57 . . . 1 17 11 42 60 134 68 56 8 11 . . 10 1 11 . 14 31 . . Message Errors 198 | . . . . 3 10 5 16 25 . 14 . . . . 5 3 8 20 39 10 15 2 4 . . 4 . 3 . 6 6 . . Matter Fused 186 | . . . . 3 8 6 10 28 . 16 . . . 1 1 2 9 16 37 19 13 2 1 . . 4 1 1 . 3 5 . . Heat Flow Errors 79 | . . . . . 3 2 9 13 4 3 . . . . 4 2 3 5 10 8 6 . 1 . . 2 . . . 2 2 . . Energy Discharges 78 | . . . . 4 4 1 6 10 3 5 . . . . . 2 4 8 11 8 3 1 1 . . . . . . 1 6 . . Parts Rejected 7 | . . . . . . . . . . 1 . . . . . . . . 2 2 1 . . . . . . . . . 1 . . Parts Fused 12 | . . . . . 1 1 . 2 . 1 . . . . . . 1 1 . 1 . 1 1 . . . . 2 . . . . . Data Loss (minor) 90 | . . . . 5 4 3 9 5 . 11 . . . . 3 . 4 2 18 10 10 2 1 . . . . 2 . . 1 . . Data Loss (major) 32 | . . . . . 2 . . 3 . . . . . . 1 . 6 2 6 3 3 . 1 . . . . 2 . 1 2 . . Misfires 23 | . . . . . 2 2 2 2 . 2 . . . . 2 1 . 4 2 1 . . . . . . . 1 . . 2 . . Alerts 16 | . . . . . 2 . . 1 . 2 . . . . 1 1 3 2 1 . 1 . . . . . . . . . 2 . . Misdirections 5 | . . . . . . . . . . . . . . . . . 1 . 1 . 2 . . . . . . . . . 1 . . Weapon Failures 29 | . . . . 1 1 1 . 1 . 2 . . . . . . 3 . 7 6 2 . 1 . . . . . . 1 3 . . Overload Shots 3 | . . . . . . . . . . . . . . . . . . . . . . . . . . . . . 3 . . . . Overflow Damage 1898 | . . . . 23 22 3 46 45 . 2 59 82 60 64 . 369 25 179 36 212 160 74 . 58 19 14 40 146 37 78 45 . . Projectiles 500 | . . . . 23 . . . 45 . 2 17 25 . 17 . . 13 26 36 45 15 . . 33 19 14 . 10 37 78 45 . . Explosions 559 | . . . . . 22 3 46 . . . . . . . . . . . . 167 145 . . . . . 40 136 . . . . . Melee 839 | . . . . . . . . . . . 42 57 60 47 . 369 12 153 . . . 74 . 25 . . . . . . . . . Knockbacks 23 | . . . . 4 . . . . . . 1 12 1 3 . . 1 . . . . . . . . . . . . . 1 . . Impact 6 | . . . . . . . . . . . 1 . 1 3 . . 1 . . . . . . . . . . . . . . . . Kinetic 16 | . . . . 4 . . . . . . . 11 . . . . . . . . . . . . . . . . . . 1 . . Secondary 1 | . . . . . . . . . . . . 1 . . . . . . . . . . . . . . . . . . . . . Self-Inflicted Damage 916 | . . . . 115 88 127 129 . . . . . . . . . 25 . 162 47 141 . . . . 16 59 . . . . . 7 Shots 24 | . . . . 2 3 2 4 . . . . . . . . . 1 . 4 2 4 . . . . 1 1 . . . . . . Rammed 27 | . 1 . . . . 1 . . . 1 . . 1 10 . . 4 . . 3 . . . . . . . . 1 1 1 . 3 Targets Rammed 33 | . 1 . . . . 1 . . . 1 . . 1 12 . . 4 . 1 3 1 . . . . . . . 1 2 2 . 3 Kicked 1 | . . . . . . . . . . . . . . . . . . . 1 . . . . . . . . . . . . . . Crushed 5 | . . . . . . . . . . . . . . 2 . . . . . . 1 . . . . . . . . 1 1 . . Highest Temperature 541 | . 150 51 4 81 229 147 259 260 189 541 249 270 40 30 240 233 424 297 351 318 315 . 122 282 210 10 . 234 7 168 367 . . Average Temperature 84 | . 34 24 3 17 56 51 84 87 82 154 98 69 19 10 100 113 74 124 88 91 129 . 65 97 103 10 . 50 2 83 137 . . Received Heat Transfer 8574 | . 315 12 117 436 432 693 234 324 . 740 9 423 45 252 9 . 569 411 623 733 936 . 18 18 42 29 25 346 35 272 305 27 144 Effects 11 | . . . . . . . . . . 3 1 . . . . . 1 2 3 . . . . . . . . . . . 1 . . Shutdowns 2 | . . . . . . . . . . 2 . . . . . . . . . . . . . . . . . . . . . . . Energy Bleed 6 | . . . . . . . . . . . . . . . . . 1 2 2 . . . . . . . . . . . 1 . . Interference 2 | . . . . . . . . . . 1 1 . . . . . . . . . . . . . . . . . . . . . . Damage (minor) 1 | . . . . . . . . . . . . . . . . . . . 1 . . . . . . . . . . . . . . Siege Activations 32 | . . . . . . . . . . . . 1 1 2 . . 3 1 . 3 2 . . . 4 1 . 3 . 5 6 . . Total Turns 726 | . . . . . . . . . . . . 9 13 16 . . 85 32 . 83 26 . . . 115 33 . 77 . 146 91 . . Longest Duration 67 | . . . . . . . . . . . . 9 13 11 . . 67 32 . 47 21 . . . 65 33 . 58 . 45 31 . . Martial Activations . | . . . . . . . . . . . . . . . . . . . . . . . . . . . . . . . . . . Shielding Activations 6 | . . . . . . . . . . . . . . . . . . . 6 . . . . . . . . . . . . . . Total Turns 104 | . . . . . . . . . . . . . . . . . . . 104 . . . . . . . . . . . . . . Longest Duration 25 | . . . . . . . . . . . . . . . . . . . 25 . . . . . . . . . . . . . . Robots Disrupted 1 | . . . . . . . . . . . . . . . . . . . . . . . . . . . . . . . 1 . . Combat Hostiles 1 | . . . . . . . . . . . . . . . . . . . . . . . . . . . . . . . 1 . . Robots Corrupted 42 | . . . . 3 . . . . . 5 2 . . 1 . . 2 2 11 . 1 . . . . . . . . 3 12 . . Combat Hostiles 39 | . . . . 3 . . . . . 4 2 . . . . . 1 2 11 . 1 . . . . . . . . 3 12 . . Parts Fried 114 | . . . . 14 2 . . . . 5 1 . . 3 . . 1 15 24 . 1 . . . . . . . . 12 36 . . Impact Corruptions 7 | . . . . . . . . . . . 3 . . 3 . . 1 . . . . . . . . . . . . . . . . Robots Melted 11 | . . . 1 1 . . . 1 . . 1 . . . . . . . . 4 1 . . . . . . . . 1 1 . . Combat Hostiles 8 | . . . 1 . . . . 1 . . . . . . . . . . . 3 1 . . . . . . . . 1 1 . . Parts Melted 86 | . 1 . 5 4 9 16 . 8 . . 3 4 . 1 . . 4 6 1 10 . . . 2 1 2 . 4 2 2 1 . . Heat Transferred 38150 | . 1240 779 582 4529 4300 4765 879 1757 . 877 962 1369 111 888 74 . 481 459 1008 3235 629 . 259 518 1665 962 . 1863 814 2109 1036 . . Parts Sabotaged . | . . . . . . . . . . . . . . . . . . . . . . . . . . . . . . . . . . Parts Stolen . | . . . . . . . . . . . . . . . . . . . . . . . . . . . . . . . . . . Parts Stripped 18 | . . . . . . . . . . . . . . . . . . . . . . . . . . . . . . 18 . . . Power Chain Reactions 9 | . . . . 1 3 . . . . 1 . . . . . . . . 4 . . . . . . . . . . . . . . Alert | -11 -10 -10 -8 -8 -8 -7 -7 -7 -7 -6 -6 -6 -6 -6 -6 -6 -6 -5 -5 -5 -5 -5 -5 -4 -4 -4 -4 -3 -3 -3 -3 -2 -2 ------- Run | Yrd Mat Sub Mat Gar Mat Fac Low Low Zio Pro Fac Gar Fac Ext Cet Arc Hub Fac Gar Fac Gar Fac DSF Fac Upp Upp War Pro Res Qua Sec Res Gar Maximum Alert Level 5 | . . . . 5 4 2 . . . . . 4 2 1 1 . 3 2 5 5 5 3 3 1 . . . . . 1 3 1 2 Low Security (%) 37 | 100 100 . 100 10 . . . . . . 100 9 . 88 94 100 15 31 1 . . . . 80 . . . . 100 61 29 . . Level 1 13 | . . . . 5 . 12 . . . . . 25 30 11 5 . 8 60 4 . . . . 19 . . . . . 38 17 100 75 Level 2 17 | . . . . 17 . 87 . . . . . 37 69 . . . 43 7 17 . . . 29 . . . . . . . 45 . 24 Level 3 9 | . . . . 19 32 . . . . . . 18 . . . . 32 . 18 . . 100 70 . . . . . . . 7 . . Level 4 12 | . . . . 18 67 . . . . . . 9 . . . . . . 17 67 49 . . . . . . . . . . . . Level 5 9 | . . . . 27 . . . . . . . . . . . . . . 40 32 50 . . . . . . . . . . . . High Security . | . . . . . . . . . . . . . . . . . . . . . . . . . . . . . . . . . . Max Security . | . . . . . . . . . . . . . . . . . . . . . . . . . . . . . . . . . . Peak Influence 2451 | 10 115 . 144 2349 1306 647 . . . . 143 1244 653 232 206 173 984 476 2451 1693 2058 1080 720 361 . . . . 41 327 726 389 499 Initial 1286 | . . . . 76 1144 552 . . . . 56 . 653 158 109 51 . 476 154 1286 1186 1080 685 361 . . . . . 20 159 389 279 Average 582 | 1 32 . 63 1085 1164 515 . . . . 32 570 489 107 142 21 552 238 1346 1442 1629 1032 702 85 . . . . 4 158 430 381 332 Influence Increases 19512 | 25 441 . 299 2383 905 674 350 185 . 365 254 1264 192 624 298 282 1892 607 2497 1179 972 19 35 119 253 372 300 330 211 859 1042 4 280 Destroy 0b10 Robot/C 9840 | . 260 . 200 1000 540 420 340 160 . 300 140 440 80 340 160 80 620 340 920 520 620 . 20 80 200 300 280 280 80 540 580 . . Destroy 0b10 Robot/NC 740 | 25 50 . 5 70 80 25 . 5 . 10 15 40 30 30 10 45 65 20 35 60 . 15 . 15 5 . 5 . 5 30 45 . . Destroy Leader 1264 | . 66 . 40 20 144 110 10 20 . 10 32 40 22 52 . . 158 90 50 94 40 . . 12 . 30 . 50 2 74 98 . . Allied During Kill 1150 | . . . . 180 . . . . . . 5 . . 143 110 125 414 . 124 . . . . 2 3 42 . . . 2 . . . Trap Triggered on 0b10 10 | . . . . . . . . . . . . . 10 . . . . . . . . . . . . . . . . . . . . Successful Hack 290 | . 20 . 3 . 27 3 . . . . . 12 25 19 . . 25 60 . 54 . . . . . . . . 38 . . 4 . Disable Machine 1260 | . . . 15 105 15 75 . . . . 30 15 . 15 . 30 390 30 45 285 . . . . . . . . 60 75 75 . . Anti-Garrison Action 2700 | . . . . 900 . . . . . . . 650 . . . . . . 950 . 150 . . . . . . . . . . . 50 Destroy Structure 1013 | . . . 6 63 24 26 . . . . 17 37 10 10 18 2 160 22 163 136 162 4 . 10 . . . . 26 78 34 . 5 Lose Combat Pursuer 1245 | . 45 . 30 45 75 15 . . . 45 15 30 15 15 . . 60 45 210 30 . . 15 . 45 . 15 . . 60 210 . 225 Influence Decreases 11284 | 25 441 . 181 110 834 779 526 267 . 274 309 20 520 586 278 333 920 862 200 770 100 120 30 428 285 331 67 330 174 596 508 20 60 Time Decay 8293 | 25 411 . 161 . 514 559 474 267 . 164 279 . 470 496 198 273 510 612 . 550 . 120 . 98 265 311 30 330 152 586 428 10 . Lost Part 984 | . 30 . 20 10 20 70 52 . . 110 10 20 50 10 . . 50 100 80 30 100 . 30 10 20 . . . 2 10 80 10 60 Lost Ally 657 | . . . . 100 . . . . . . 20 . . 80 80 60 60 . 120 40 . . . 20 . 20 37 . 20 . . . . Purge Threat 1350 | . . . . . 300 150 . . . . . . . . . . 300 150 . 150 . . . 300 . . . . . . . . . Squads Dispatched 68 | . 2 . 1 . 6 6 . . . 1 2 . 3 3 . . 7 8 . 8 . . 1 3 . . . . 2 5 10 . . Investigation 5 | . 1 . . . . 1 . . . . . . . 2 . . . . . 1 . . . . . . . . . . . . . Extermination 19 | . . . . . . 3 . . . . 1 . 1 . . . 2 4 . 2 . . . 1 . . . . . 3 2 . . Reinforcement 33 | . 1 . 1 . 3 . . . . . 1 . 2 1 . . 5 4 . 2 . . 1 2 . . . . 2 2 6 . . Assault 9 | . . . . . 3 2 . . . 1 . . . . . . . . . 3 . . . . . . . . . . . . . Garrison . | . . . . . . . . . . . . . . . . . . . . . . . . . . . . . . . . . . Intercept 2 | . . . . . . . . . . . . . . . . . . . . . . . . . . . . . . . 2 . . Searches Triggered . | . . . . . . . . . . . . . . . . . . . . . . . . . . . . . . . . . . Construction Impeded 6 | . . . . . 1 . . . . . . . . 1 . . 2 . . . . . . 1 . . . . . 1 . . . Haulers Reinforced 3 | . . . . . . . . . . . . . 1 . . . . . . 1 . . . . . . . . 1 . . . . Active Scanning Responses . | . . . . . . . . . . . . . . . . . . . . . . . . . . . . . . . . . . Cargo Convoy Interrupts 1 | . . . . . . . . . . . . . . . . . . 1 . . . . . . . . . . . . . . . Stealth | -11 -10 -10 -8 -8 -8 -7 -7 -7 -7 -6 -6 -6 -6 -6 -6 -6 -6 -5 -5 -5 -5 -5 -5 -4 -4 -4 -4 -3 -3 -3 -3 -2 -2 --------- Run | Yrd Mat Sub Mat Gar Mat Fac Low Low Zio Pro Fac Gar Fac Ext Cet Arc Hub Fac Gar Fac Gar Fac DSF Fac Upp Upp War Pro Res Qua Sec Res Gar Distress Signals 30 | . 1 . 2 . 3 2 . . . . 2 . . 1 2 . 2 2 . 2 . . . . . . 1 . 4 3 3 . . Communications Jammed 154 | . . . . . . . . . . . 1 . 5 57 . . 26 . . . . . . . . . . . . 24 41 . . Distress Signals 153 | . . . . . . . . . . . . . 5 57 . . 26 . . . . . . . . . . . . 24 41 . . Times Spotted 687 | . 22 3 15 50 40 34 17 8 . 20 12 24 16 23 11 7 37 20 46 38 28 . 6 9 10 11 19 9 15 40 52 3 42 Peak Tracking Total 23 | . 4 2 5 8 5 7 13 4 . 8 5 6 3 4 5 2 5 5 5 7 6 . 4 3 7 4 17 2 4 4 6 3 23 Tactical Retreats 53 | . 1 . 1 2 4 1 . . . 2 1 2 1 1 . . 2 3 10 1 . . 1 . 2 . 1 . . 2 11 . 4 Traps | -11 -10 -10 -8 -8 -8 -7 -7 -7 -7 -6 -6 -6 -6 -6 -6 -6 -6 -5 -5 -5 -5 -5 -5 -4 -4 -4 -4 -3 -3 -3 -3 -2 -2 ------- Run | Yrd Mat Sub Mat Gar Mat Fac Low Low Zio Pro Fac Gar Fac Ext Cet Arc Hub Fac Gar Fac Gar Fac DSF Fac Upp Upp War Pro Res Qua Sec Res Gar Traps Triggered 32 | . 2 1 2 3 . . . . . . 1 9 2 . . . 1 1 2 1 1 1 . 2 . . . . . 1 1 . 1 Indirectly 1 | . . . . . . . . . . . . . . . . . 1 . . . . . . . . . . . . . . . . Trap Hack Attempts 14 | . . . . . . . . . . . . . 14 . . . . . . . . . . . . . . . . . . . . Triggered . | . . . . . . . . . . . . . . . . . . . . . . . . . . . . . . . . . . Disarmed . | . . . . . . . . . . . . . . . . . . . . . . . . . . . . . . . . . . Reprogrammed 1 | . . . . . . . . . . . . . 1 . . . . . . . . . . . . . . . . . . . . Reused 1 | . . . . . . . . . . . . . 1 . . . . . . . . . . . . . . . . . . . . Traps Extracted . | . . . . . . . . . . . . . . . . . . . . . . . . . . . . . . . . . . Installed . | . . . . . . . . . . . . . . . . . . . . . . . . . . . . . . . . . . Triggered 1 | . . . . . . . . . . . . . 1 . . . . . . . . . . . . . . . . . . . . Machines | -11 -10 -10 -8 -8 -8 -7 -7 -7 -7 -6 -6 -6 -6 -6 -6 -6 -6 -5 -5 -5 -5 -5 -5 -4 -4 -4 -4 -3 -3 -3 -3 -2 -2 ---------- Run | Yrd Mat Sub Mat Gar Mat Fac Low Low Zio Pro Fac Gar Fac Ext Cet Arc Hub Fac Gar Fac Gar Fac DSF Fac Upp Upp War Pro Res Qua Sec Res Gar Machines Disabled 111 | . . 1 1 17 1 5 4 . . . 2 3 . 2 . 2 26 2 7 19 2 . . . 1 . 1 . 4 6 5 . . Max in Single Turn 12 | . . 1 1 2 1 2 1 . . . 1 1 . 1 . 1 12 1 1 4 1 . . . 1 . 1 . 1 1 1 . . Garrison Access 2 | . . . . . . . . . . . . . 1 . . . . . . . . . . . . . . . 1 . . . . Garrison Relay 15 | . . . . 8 . . . . . . . 2 . . . . . . 3 . 2 . . . . . . . . . . . . Phase Generator 1 | . . . . 1 . . . . . . . . . . . . . . . . . . . . . . . . . . . . . Network Hub 3 | . . . . . . . . . . . . . . . . . 3 . . . . . . . . . . . . . . . . Machines Repaired . | . . . . . . . . . . . . . . . . . . . . . . . . . . . . . . . . . . Machines Dismantled . | . . . . . . . . . . . . . . . . . . . . . . . . . . . . . . . . . . Machines Sabotaged . | . . . . . . . . . . . . . . . . . . . . . . . . . . . . . . . . . . Overloaded Fab Kills . | . . . . . . . . . . . . . . . . . . . . . . . . . . . . . . . . . . Hacking | -11 -10 -10 -8 -8 -8 -7 -7 -7 -7 -6 -6 -6 -6 -6 -6 -6 -6 -5 -5 -5 -5 -5 -5 -4 -4 -4 -4 -3 -3 -3 -3 -2 -2 --------- Run | Yrd Mat Sub Mat Gar Mat Fac Low Low Zio Pro Fac Gar Fac Ext Cet Arc Hub Fac Gar Fac Gar Fac DSF Fac Upp Upp War Pro Res Qua Sec Res Gar Machines Accessed 79 | . 8 1 2 2 9 6 2 3 1 . 1 2 7 9 . . 4 5 . 7 1 1 . 1 1 1 1 . 2 . . 1 1 Terminals 50 | . 7 . 1 2 7 4 1 . . . . 2 2 9 . . 4 3 . 2 1 1 . 1 . 1 . . 1 . . . 1 Fabricators 6 | . . . . . . 2 . . . . . . . . . . . . . 4 . . . . . . . . . . . . . Repair Stations 3 | . 1 . . . . . . . . . . . 2 . . . . . . . . . . . . . . . . . . . . Recycling Units 1 | . . . . . . . . . . . . . 1 . . . . . . . . . . . . . . . . . . . . Scanalyzers 4 | . . . . . 2 . . . . . . . 1 . . . . 1 . . . . . . . . . . . . . . . Garrison Access 7 | . . . 1 . . . . . . . 1 . 1 . . . . 1 . 1 . . . . . . . . 1 . . 1 . Total Hacks 254 | . 27 1 5 3 34 9 5 8 2 . 1 6 12 20 . . 12 36 . 27 4 2 . 8 1 1 1 . 19 . . 2 8 Successful 119 | . 10 1 4 . 20 4 5 8 2 . 1 1 7 6 . . 6 13 . 11 . 1 . 4 1 1 1 . 10 . . 1 1 Failed 135 | . 17 . 1 3 14 5 . . . . . 5 5 14 . . 6 23 . 16 4 1 . 4 . . . . 9 . . 1 7 Catastrophic 24 | . 2 . . 2 . 3 . . . . . 1 . 1 . . 2 3 . 7 1 . . 1 . . . . . . . . 1 Database Lockouts . | . . . . . . . . . . . . . . . . . . . . . . . . . . . . . . . . . . Manual 100 | . 21 . 4 . 20 4 . . . . . . 3 4 1 . 1 10 . 19 . . . 7 . . . . 2 . . . 4 Terminals 174 | . 23 . 4 3 28 5 4 . . . . 6 4 20 . . 12 16 . 8 4 2 . 8 . 1 . . 18 . . . 8 Fabricators 21 | . . . . . . 4 . . . . . . . . . . . . . 17 . . . . . . . . . . . . . Repair Stations 7 | . 4 . . . . . . . . . . . 3 . . . . . . . . . . . . . . . . . . . . Recycling Units 2 | . . . . . . . . . . . . . 2 . . . . . . . . . . . . . . . . . . . . Scanalyzers 23 | . . . . . 6 . . . . . . . 1 . . . . 16 . . . . . . . . . . . . . . . Garrison Access 13 | . . . 1 . . . . . . . 1 . 2 . . . . 4 . 2 . . . . . . . . 1 . . 2 . Terminal Hacks 65 | . 1 1 1 . 9 1 5 8 2 . . 1 2 6 . . 6 4 . 2 . 1 . 4 1 1 1 . 7 . . . 1 Record 11 | . . . . . . . 4 6 . . . . . . . . . . . . . . . . . 1 . . . . . . . Part Schematic 3 | . . . . . . . . . 2 . . . . . . . . . . . . . . . . . . . 1 . . . . Prototype ID Bank 1 | . 1 . . . . . . . . . . . . . . . . . . . . . . . . . . . . . . . . Open Door 11 | . . . . . . . 1 2 . . . . 1 5 . . . . . . . . . . 1 . 1 . . . . . . Open DSF 1 | . . . . . . . . . . . . . . . . . . . . . . 1 . . . . . . . . . . . Level Access Points 1 | . . . . . . . . . . . . . . . . . 1 . . . . . . . . . . . . . . . . Branch Access Points 1 | . . . . . . . . . . . . . . . . . . . . . . . . . . . . . 1 . . . . Emergency Access Points 2 | . . . . . 1 . . . . . . 1 . . . . . . . . . . . . . . . . . . . . . Machine Index 1 | . . . . . . . . . . . . . . . . . . . . . . . . 1 . . . . . . . . . Terminal Index 4 | . . . . . 1 . . . . . . . 1 . . . . 1 . . . . . . . . . . 1 . . . . Alert Level 8 | . . . . . 1 . . . . . . . . 1 . . 2 2 . 1 . . . . . . . . 1 . . . . Unreport Threat 9 | . . . . . 2 1 . . . . . . . . . . 2 1 . 1 . . . 2 . . . . . . . . . Locate Traps 2 | . . . . . 2 . . . . . . . . . . . . . . . . . . . . . . . . . . . . Hauler Manifests 1 | . . . . . . . . . . . . . . . . . . . . . . . . . . . . . 1 . . . . Registered Components 1 | . . . . . . . . . . . . . . . . . . . . . . . . . . . . . 1 . . . . Registered Prototypes 1 | . . . . . . . . . . . . . . . . . . . . . . . . . . . . . 1 . . . . Zone Layout 5 | . . . 1 . 2 . . . . . . . . . . . 1 . . . . . . 1 . . . . . . . . . Patrol Navigation 1 | . . . . . . . . . . . . . . . . . . . . . . . . . . . . . . . . . 1 Derelict Proto ID Bank 1 | . . 1 . . . . . . . . . . . . . . . . . . . . . . . . . . . . . . . Fabricator Hacks 4 | . . . . . . 3 . . . . . . . . . . . . . 1 . . . . . . . . . . . . . Network Status 2 | . . . . . . 1 . . . . . . . . . . . . . 1 . . . . . . . . . . . . . Load Schematic 1 | . . . . . . 1 . . . . . . . . . . . . . . . . . . . . . . . . . . . Build 1 | . . . . . . 1 . . . . . . . . . . . . . . . . . . . . . . . . . . . Repair Station Hacks 3 | . 1 . . . . . . . . . . . 2 . . . . . . . . . . . . . . . . . . . . Scan Component 2 | . 1 . . . . . . . . . . . 1 . . . . . . . . . . . . . . . . . . . . Repair 1 | . . . . . . . . . . . . . 1 . . . . . . . . . . . . . . . . . . . . Recycling Unit Hacks . | . . . . . . . . . . . . . . . . . . . . . . . . . . . . . . . . . . Scanalyzer 9 | . . . . . 4 . . . . . . . . . . . . 5 . . . . . . . . . . . . . . . Insert Component 5 | . . . . . 2 . . . . . . . . . . . . 3 . . . . . . . . . . . . . . . Analyze 4 | . . . . . 2 . . . . . . . . . . . . 2 . . . . . . . . . . . . . . . Garrison Access Hacks 7 | . . . 1 . . . . . . . 1 . 1 . . . . 1 . 1 . . . . . . . . 1 . . 1 . Unlock Access 5 | . . . 1 . . . . . . . 1 . . . . . . 1 . 1 . . . . . . . . . . . 1 . Seal Access 2 | . . . . . . . . . . . . . 1 . . . . . . . . . . . . . . . 1 . . . . Unauthorized Hacks 31 | . 8 . 2 . 7 . . . . . . . 2 . . . . 3 . 7 . . . . . . . . 2 . . . . Terminals 23 | . 8 . 2 . 7 . . . . . . . 1 . . . . 3 . . . . . . . . . . 2 . . . . Botnet 8 | . 2 . 1 . 1 . . . . . . . 1 . . . . 2 . . . . . . . . . . 1 . . . . Operators 4 | . 1 . . . 1 . . . . . . . . . . . . 1 . . . . . . . . . . 1 . . . . Skim 11 | . 5 . 1 . 5 . . . . . . . . . . . . . . . . . . . . . . . . . . . . Fabricators 7 | . . . . . . . . . . . . . . . . . . . . 7 . . . . . . . . . . . . . Liberate 2 | . . . . . . . . . . . . . . . . . . . . 2 . . . . . . . . . . . . . Fabnet 4 | . . . . . . . . . . . . . . . . . . . . 4 . . . . . . . . . . . . . Haulers 1 | . . . . . . . . . . . . . . . . . . . . 1 . . . . . . . . . . . . . Repair Stations . | . . . . . . . . . . . . . . . . . . . . . . . . . . . . . . . . . . Recycling Units 1 | . . . . . . . . . . . . . 1 . . . . . . . . . . . . . . . . . . . . Mask 1 | . . . . . . . . . . . . . 1 . . . . . . . . . . . . . . . . . . . . Scanalyzers . | . . . . . . . . . . . . . . . . . . . . . . . . . . . . . . . . . . Garrison Access . | . . . . . . . . . . . . . . . . . . . . . . . . . . . . . . . . . . Data Cores Recovered 2 | . . . . . . 1 . . . . . . 1 . . . . . . . . . . . . . . . . . . . . Used . | . . . . . . . . . . . . . . . . . . . . . . . . . . . . . . . . . . Hacking Detections 59 | . 8 . 1 2 7 6 1 . . . . 2 6 7 1 . 4 4 . 5 1 1 . 1 . . . . 1 . . . 1 Full Trace Events 9 | . 1 . . . . 1 1 . . . . 1 . 2 . . . . . 1 1 . . . . . . . . . . . 1 Feedback Events 1 | . . . . . . . . . . . . . . . . . . . . . . . . . . . . . . . . . 1 Corruption 1 | . . . . . . . . . . . . . . . . . . . . . . . . . . . . . . . . . 1 Feedback Blocked . | . . . . . . . . . . . . . . . . . . . . . . . . . . . . . . . . . . Robot Schematics Acquired 2 | . . . . . . . . . . . . . . . . . . . . . . . . . . . . . . . 2 . . Robots Built . | . . . . . . . . . . . . . . . . . . . . . . . . . . . . . . . . . . Authchips . | . . . . . . . . . . . . . . . . . . . . . . . . . . . . . . . . . . Time . | . . . . . . . . . . . . . . . . . . . . . . . . . . . . . . . . . . Total Robot Build Rating . | . . . . . . . . . . . . . . . . . . . . . . . . . . . . . . . . . . Part Schematics Acquired 14 | . . . . . 2 . . . 2 . . . . . . . . 2 . . . . . . . . . . 1 . 7 . . Parts Built 1 | . . . . . . 1 . . . . . . . . . . . . . . . . . . . . . . . . . . . Authchips . | . . . . . . . . . . . . . . . . . . . . . . . . . . . . . . . . . . Time 62 | . . . . . . 62 . . . . . . . . . . . . . . . . . . . . . . . . . . . Total Part Build Rating 2 | . . . . . . 2 . . . . . . . . . . . . . . . . . . . . . . . . . . . Parts Repaired 1 | . . . . . . . . . . . . . 1 . . . . . . . . . . . . . . . . . . . . Time 70 | . . . . . . . . . . . . . 70 . . . . . . . . . . . . . . . . . . . . Parts Recycled . | . . . . . . . . . . . . . . . . . . . . . . . . . . . . . . . . . . Recycled Matter . | . . . . . . . . . . . . . . . . . . . . . . . . . . . . . . . . . . Retrieved Matter . | . . . . . . . . . . . . . . . . . . . . . . . . . . . . . . . . . . Retrieved Components . | . . . . . . . . . . . . . . . . . . . . . . . . . . . . . . . . . . Parts Scanalyzed 5 | . . . . . 2 . . . . . . . . . . . . 3 . . . . . . . . . . . . . . . Part Schematics Acquired 4 | . . . . . 2 . . . . . . . . . . . . 2 . . . . . . . . . . . . . . . Parts Damaged 3 | . . . . . 1 . . . . . . . . . . . . 2 . . . . . . . . . . . . . . . Bothacking | -11 -10 -10 -8 -8 -8 -7 -7 -7 -7 -6 -6 -6 -6 -6 -6 -6 -6 -5 -5 -5 -5 -5 -5 -4 -4 -4 -4 -3 -3 -3 -3 -2 -2 ------------ Run | Yrd Mat Sub Mat Gar Mat Fac Low Low Zio Pro Fac Gar Fac Ext Cet Arc Hub Fac Gar Fac Gar Fac DSF Fac Upp Upp War Pro Res Qua Sec Res Gar Used RIF Installer . | . . . . . . . . . . . . . . . . . . . . . . . . . . . . . . . . . . Robots Hacked 26 | . . . . . . . . . . . 1 . . . . 2 . 1 . . . . . 1 3 3 8 . 4 2 1 . . Non-combat 2 | . . . . . . . . . . . 1 . . . . 1 . . . . . . . . . . . . . . . . . Combat 24 | . . . . . . . . . . . . . . . . 1 . 1 . . . . . 1 3 3 8 . 4 2 1 . . Robot Hacks Applied 4 | . . . . . . . . . . . 1 . . . . 2 . 1 . . . . . . . . . . . . . . . parse_system 2 | . . . . . . . . . . . . . . . . 1 . 1 . . . . . . . . . . . . . . . check_alert 2 | . . . . . . . . . . . 1 . . . . 1 . . . . . . . . . . . . . . . . . Relay Couplers Released 60 | . . . . 30 . . . . . . . 9 . . . . . . 13 . 8 . . . . . . . . . . . . Machine Destruction 60 | . . . . 30 . . . . . . . 9 . . . . . . 13 . 8 . . . . . . . . . . . . Fabnet Peak Effective % 12 | . . . . . . . . . . . . . . . . . . . . . . . . 12 12 12 12 4 4 4 4 . . Autooverrided 22 | . . . . . . . . . . . . . . . . . . . . . . . . 1 3 3 8 . 4 2 1 . . Robots Rewired 20 | . . . . 7 . . . . . 2 . . . 3 . . . . 6 . . . . . 2 . . . . . . . . Allies Hacked . | . . . . . . . . . . . . . . . . . . . . . . . . . . . . . . . . . . Hacks Repelled . | . . . . . . . . . . . . . . . . . . . . . . . . . . . . . . . . . . Allies | -11 -10 -10 -8 -8 -8 -7 -7 -7 -7 -6 -6 -6 -6 -6 -6 -6 -6 -5 -5 -5 -5 -5 -5 -4 -4 -4 -4 -3 -3 -3 -3 -2 -2 -------- Run | Yrd Mat Sub Mat Gar Mat Fac Low Low Zio Pro Fac Gar Fac Ext Cet Arc Hub Fac Gar Fac Gar Fac DSF Fac Upp Upp War Pro Res Qua Sec Res Gar Total Allies 61 | . . . . 7 . . . . . 2 . . . 13 5 . . . 6 4 . . . 1 5 3 8 . 4 2 1 . . Largest Group 9 | . . . . 5 . . . . . 2 2 . . 9 9 8 5 . 6 2 . . . 1 2 3 1 . 1 1 1 . . Highest-Rated Group 707 | . . . . 85 . . . . . 49 49 . . 396 707 548 415 . 246 98 . . . 30 98 110 69 . 47 82 137 . . Highest-Rated Ally 159 | . . . . 21 . . . . . 29 29 . . 159 159 96 96 . 41 49 . . . 30 58 49 69 . 47 82 137 . . Total Orders 26 | . . . . 8 . . . . . . 2 4 5 4 . 2 1 . . . . . . . . . . . . . . . . STAY 7 | . . . . 4 . . . . . . . . . 1 . 1 1 . . . . . . . . . . . . . . . . FOLLOW 6 | . . . . 4 . . . . . . . . . 1 . 1 . . . . . . . . . . . . . . . . . EXPLORE 6 | . . . . . . . . . . . 1 2 3 . . . . . . . . . . . . . . . . . . . . RETURN 7 | . . . . . . . . . . . 1 2 2 2 . . . . . . . . . . . . . . . . . . . Ally Attacks 417 | . . . . 54 . . . . . . 9 . . 83 67 14 60 . 53 10 . . . 2 6 23 14 . 12 8 2 . . Total Damage 10416 | . . . . 933 . . . . . . 115 . . 1471 1967 428 1976 . 1526 186 . . . 112 85 550 598 . 233 165 71 . . Kills 68 | . . . . 11 . . . . . . . . . 10 9 3 13 . 9 . . . . 1 1 6 3 . 1 . 1 . . Allies Corrupted 3 | . . . . . . . . . . . . . . . . . 3 . . . . . . . . . . . . . . . . Allies Melted 1 | . . . . . . . . . . . . . . . . . . . . . . . . . 1 . . . . . . . . Intel | -11 -10 -10 -8 -8 -8 -7 -7 -7 -7 -6 -6 -6 -6 -6 -6 -6 -6 -5 -5 -5 -5 -5 -5 -4 -4 -4 -4 -3 -3 -3 -3 -2 -2 ------- Run | Yrd Mat Sub Mat Gar Mat Fac Low Low Zio Pro Fac Gar Fac Ext Cet Arc Hub Fac Gar Fac Gar Fac DSF Fac Upp Upp War Pro Res Qua Sec Res Gar Active Infowar (turns) 25535 | 84 1650 62 . . . 406 272 978 . 410 918 2026 1114 1356 406 2457 1131 1349 639 898 . 222 165 43 1937 1636 1215 499 1321 1305 1007 . 29 Optics 620 | . . . . . . . . . . . . . 616 . . . . . 1 . . . . . . . . . 3 . . . . Sensors 11899 | . . . . . . . 272 . . 385 . 1 478 . . 1774 201 1349 638 898 . 222 165 42 1928 1636 1034 . . 521 355 . . Terrain 4049 | 84 1650 62 . . . 406 . 978 . 25 683 2 . . . . . . . . . . . . . . . . 1 . 158 . . Structural 671 | . . . . . . . . . . . . . . . . . . . . . . . . 42 48 47 . . 534 . . . . Triangulation 1 | . . . . . . . . . . . . . 1 . . . . . . . . . . . . . . . . . . . . Cloaking 284 | . . . . . . . . . . . . . . . . . . . . . . . . . . . . . 284 . . . . Jamming 12511 | . . . . . . . . . . . 917 2026 486 1356 406 2451 1131 . . . . . . . 9 . 314 498 1145 1069 674 . 29 ECM 1 | . . . . . . . . . . . . . . . . . . . . . . . . . . . . 1 . . . . . Robot Analysis Total . | . . . . . . . . . . . . . . . . . . . . . . . . . . . . . . . . . . Derelict Logs Recovered 5 | . . . . . . . 2 . . . . . . . . . . . . . . . . . 1 2 . . . . . . . Drone Launches 10 | . . . . . . . . . . . 2 2 4 2 . . . . . . . . . . . . . . . . . . . Drone Recoveries 10 | . . . . . . . . . . . 2 2 4 2 . . . . . . . . . . . . . . . . . . . Exploration | -11 -10 -10 -8 -8 -8 -7 -7 -7 -7 -6 -6 -6 -6 -6 -6 -6 -6 -5 -5 -5 -5 -5 -5 -4 -4 -4 -4 -3 -3 -3 -3 -2 -2 ------------- Run | Yrd Mat Sub Mat Gar Mat Fac Low Low Zio Pro Fac Gar Fac Ext Cet Arc Hub Fac Gar Fac Gar Fac DSF Fac Upp Upp War Pro Res Qua Sec Res Gar Turns Passed 44967 | 177 1653 370 435 2470 1418 1649 1416 2167 2486 1765 918 2477 1183 1413 406 2472 1393 2014 2881 1594 1030 247 176 255 2161 1804 1215 929 1322 1833 1047 32 159 Spaces Moved 18384 | 78 785 203 241 1170 486 684 487 576 874 646 349 879 1274 719 170 453 609 730 1348 625 396 119 73 125 1004 711 473 312 571 528 346 62 278 Core 426 | 2 . . . . . . . . . 1 . . 1 . . 69 . . . . . . . . . . . . . 3 27 60 263 Treads 10504 | 76 320 . . 1087 486 684 366 363 . 93 243 609 407 719 170 384 609 386 442 352 202 . . . 188 648 473 312 43 525 317 . . Legs 3094 | . 84 . . . . . 121 213 874 552 . . . . . . . 344 906 . . . . . . . . . . . . . . Wheels 3475 | . 381 203 241 83 . . . . . . 106 270 . . . . . . . 273 194 119 73 125 816 63 . . 528 . . . . Hover . | . . . . . . . . . . . . . . . . . . . . . . . . . . . . . . . . . . Flight 866 | . . . . . . . . . . . . . 866 . . . . . . . . . . . . . . . . . . . . Fastest Speed 14 | 50 130 130 105 105 160 165 240 320 203 197 160 160 14 163 163 160 160 160 120 145 145 160 160 130 145 190 240 240 180 166 50 50 50 Average Speed 195 | 157 155 138 115 156 164 188 265 339 280 221 220 203 69 163 163 480 160 227 161 198 193 171 160 138 185 235 240 240 200 253 174 50 50 Slowest Speed 3950 | 160 260 145 120 240 165 243 340 620 340 1600 320 640 296 163 163 2250 160 640 250 240 240 190 205 145 235 240 240 240 249 3950 255 50 50 Overloaded Moves 3 | . . . . . . . . . . . . . 3 . . . . . . . . . . . . . . . . . . . . Propulsion Burnouts . | . . . . . . . . . . . . . . . . . . . . . . . . . . . . . . . . . . Robots Hopped . | . . . . . . . . . . . . . . . . . . . . . . . . . . . . . . . . . . Cave-ins Triggered . | . . . . . . . . . . . . . . . . . . . . . . . . . . . . . . . . . . Spacefolds 8 | . . . . . . . . . . . . . . . . . . . . . . . . . . . . . . . 1 1 6 Exploration Rate (%) 51 | 7 98 21 18 87 45 20 58 95 85 88 18 63 29 87 57 94 72 15 87 21 35 4 70 5 92 81 74 61 22 74 17 2 34 Regions Visited 33 Branch Regions 15 Pre-discovered Areas 7 | . 2 . . . 1 . 2 . 1 . . . . . . . . . . . . . . . . 1 . . . . . . . Known Exits Taken 23 | . 1 1 1 . 1 1 1 . . 1 1 . 1 . . 1 1 1 . 1 . 1 . 1 1 1 1 1 1 1 1 1 . Unknown Exits Taken 5 | 1 . . . . . . . 1 1 . . . . 1 1 . . . . . . . . . . . . . . . . . . Scrap Searched 22 | . . . . . . . 4 2 3 4 . . . . . . . . . . . . . . 3 3 . 3 . . . . . Spaces Dug 170 | . . . 3 2 9 . 7 . . . 3 15 2 1 . . 4 8 27 2 12 2 . . 4 3 3 35 11 6 11 . . Terrain Destroyed 1127 | . . . 6 57 22 24 77 2 . 5 17 29 11 10 8 3 218 12 80 64 171 2 . 6 28 62 31 98 21 47 16 . . Melee 26 | . . . . 1 . . . . . . . 10 . . . . 2 5 . . . 2 . . . . 3 . . 1 2 . . Projectile 306 | . . . 6 1 . . . 2 . 2 4 19 11 10 8 3 53 7 9 10 4 . . 6 28 16 . 26 21 46 14 . . AOE 795 | . . . . 55 22 24 77 . . 3 13 . . . . . 163 . 71 54 167 . . . . 46 28 72 . . . . . Terrain Rammed . | . . . . . . . . . . . . . . . . . . . . . . . . . . . . . . . . . . Walls Destroyed . | . . . . . . . . . . . . . . . . . . . . . . . . . . . . . . . . . . Machines Disabled . | . . . . . . . . . . . . . . . . . . . . . . . . . . . . . . . . . . Actions | -11 -10 -10 -8 -8 -8 -7 -7 -7 -7 -6 -6 -6 -6 -6 -6 -6 -6 -5 -5 -5 -5 -5 -5 -4 -4 -4 -4 -3 -3 -3 -3 -2 -2 --------- Run | Yrd Mat Sub Mat Gar Mat Fac Low Low Zio Pro Fac Gar Fac Ext Cet Arc Hub Fac Gar Fac Gar Fac DSF Fac Upp Upp War Pro Res Qua Sec Res Gar Total 24302 | 104 1088 257 336 1537 946 872 571 702 910 835 444 1330 1533 880 266 727 846 948 1823 827 569 152 108 169 1226 797 542 409 684 830 684 61 289 Wait 1814 | . 191 26 4 30 346 13 26 53 1 61 2 129 85 47 22 163 54 8 109 43 41 16 4 1 94 19 10 27 . 74 115 . . Move 18342 | 77 784 202 240 1169 485 683 486 575 873 645 348 878 1273 718 169 452 608 730 1347 625 395 118 73 124 1003 710 472 311 570 527 344 60 268 Hop . | . . . . . . . . . . . . . . . . . . . . . . . . . . . . . . . . . . Pick Up 412 | 6 22 3 18 23 6 23 8 6 6 12 15 34 29 7 6 21 12 14 31 9 11 7 7 4 14 7 8 1 18 18 6 . . Fast Attach 299 | 7 . . 3 7 2 14 1 7 9 15 3 19 16 7 11 13 9 19 41 15 3 1 1 3 19 7 9 5 9 15 9 . . Attach 223 | . 4 6 6 1 3 9 8 3 . 11 4 8 11 3 1 11 10 20 8 7 20 . 2 6 9 2 2 2 6 18 20 1 1 Detach 93 | . . . . . . 2 2 1 . 3 2 2 11 . 1 2 10 13 5 5 6 . 1 3 1 . 3 1 2 6 10 . 1 Swap 453 | . 9 5 17 39 12 8 7 4 7 14 13 29 16 9 11 12 26 27 23 22 12 2 2 8 13 10 10 16 19 32 19 . . Drop 615 | . 9 . 17 51 15 30 5 8 14 8 16 62 35 15 18 33 19 18 70 20 7 2 4 2 29 17 18 6 22 31 14 . . Fire 1612 | 14 68 15 31 180 77 89 28 45 . 54 36 86 15 38 18 4 91 44 116 70 69 . 11 17 40 25 7 40 37 103 143 . 1 Melee 232 | . . . . 1 . . . . . 11 4 67 15 . 9 16 3 53 22 8 4 6 3 1 . . 3 . . 4 2 . . Ram 6 | . . . . . . . . . . 1 . . . . . . . . . 2 . . . . . . . . . . . . 3 Kick 1 | . . . . . . . . . . . . . . . . . . . 1 . . . . . . . . . . . . . . Crush 26 | . 1 . . . . 1 . . . . . . 1 12 . . 4 . . 1 1 . . . . . . . 1 2 2 . . Escape Stasis 50 | . . . . 5 . . . . . . . 16 12 . . . . . 2 . . . . . . . . . . . . . 15 Rewire 107 | . . . . 31 . . . . . . . . . 24 . . . . 48 . . . . . 4 . . . . . . . . Trap 14 | . . . . . . . . . . . . . 14 . . . . . . . . . . . . . . . . . . . . Miscellaneous 3 | . . . . . . . . . . . 1 . . . . . . 2 . . . . . . . . . . . . . . . Route ------- -11/Scrapyard -10/Materials (discovered 6 exits: [*Mat x3] / [*Min x2] / *Sub) -10/Subcaves (discovered 2 exits: *Mat x2) -8/Materials -8/Garrison (discovered 3 exits: *Mat x3) -8/Materials (discovered 3 exits: *Fac x3) -7/Factory (discovered 3 exits: Fac / *Sto / *Low) -7/Lower Caves -7/Lower Caves (discovered 2 exits: *Fac / *Zio) -7/Zion -6/Proximity Caves -6/Factory (discovered 5 exits: Fac x3 / *Low / Gar) -6/Garrison (discovered 2 exits: *Fac x2) -6/Factory -6/Extension (discovered 2 exits: *Fac / *Cet) -6/Cetus (discovered 2 exits: *Fac / [*Arc]) -6/Archives (discovered 3 exits: *Fac / *Hub x2) -6/Hub_04(d) (discovered 4 exits: *Fac x4) -5/Factory (discovered 2 exits: *Fac / Gar) -5/Garrison (discovered 3 exits: *Fac x3) -5/Factory -5/Garrison -5/Factory -5/DSF -4/Factory -4/Upper Caves -4/Upper Caves -4/Warlord -3/Proximity Caves -3/Research (discovered 4 exits: Res x2 / *Qua x2) -3/Quarantine -3/Section 7 -2/Research -2/Garrison (discovered 1 exit: [*Res]) History --------- Turn | Location | Event 10 | -11/Scrapyard | Discovered new exit (range 16) 178 | -11/Scrapyard | Entered Materials 316 | -10/Materials | Build established: Mutant 745 | -10/Materials | Discovered new exit (range 13) 1066 | -10/Materials | Discovered new exit (range 10) 1104 | -10/Materials | Discovered new exit (range 11) 1283 | -10/Materials | Discovered new exit (range 3) 1385 | -10/Materials | Discovered new exit (range 8) 1498 | -10/Materials | Identified exit to Subcaves 1550 | -10/Materials | Learned Storage stockpile data 1610 | -10/Materials | Build established: Scavenger-Mutant 1649 | -10/Materials | Learned location of Storage (-7) 1728 | -10/Materials | Learned 4 Subcaves zone layouts 1831 | -10/Materials | Entered Subcaves 1832 | -10/Subcaves | Approached by a straggling Scientist 1832 | -10/Subcaves | Identified exit to Materials 1893 | -10/Subcaves | Core integrity fell below 50% 1915 | -10/Subcaves | Core integrity fell below 20% 1939 | -10/Subcaves | Lost 6 parts (1p2n1u2w) 2054 | -10/Subcaves | Visited 4L-MR0's lab 2072 | -10/Subcaves | Found Powered Cannon 2170 | -10/Subcaves | Shifting Twisted Machinery released Multitool 2200 | -10/Subcaves | Curiously followed by a Cobbler waking with a query about "LVR3C" 2201 | -10/Subcaves | Entered Materials 2201 | -8/Materials | Evolved 4 slots: Propulsion x2, Utility x2 2402 | -8/Materials | Identified exit to Garrison 2636 | -8/Materials | Entered Garrison 2637 | -8/Garrison | Identified exit to Materials 2866 | -8/Garrison | Triggered checkpoint 3000 | -8/Garrison | Triggered checkpoint 3218 | -8/Garrison | Garrison Relay disabled 3384 | -8/Garrison | Triggered checkpoint 3445 | -8/Garrison | Garrison Relay disabled 3472 | -8/Garrison | Phase Generator disabled 3472 | -8/Garrison | Discovered exit to Materials (range 8) 3989 | -8/Garrison | Destroyed 8 combat bots 4084 | -8/Garrison | Triggered checkpoint 4178 | -8/Garrison | Discovered exit to Materials (range 13) 4214 | -8/Garrison | P-60 Hacker assimilated allied Trooper 3b 4340 | -8/Garrison | Triggered checkpoint 4355 | -8/Garrison | Garrison Relay disabled 4568 | -8/Garrison | Triggered checkpoint 4632 | -8/Garrison | Triggered checkpoint 4682 | -8/Garrison | Garrison Relay disabled 4768 | -8/Garrison | Garrison Relay disabled 4768 | -8/Garrison | Garrison Relay disabled 4791 | -8/Garrison | Garrison Relay disabled 4795 | -8/Garrison | Garrison Relay disabled 4906 | -8/Garrison | Triggered checkpoint 5106 | -8/Garrison | Entered Materials 5655 | -8/Materials | Build established: Mutant 5906 | -8/Materials | First assault squad dispatched 5933 | -8/Materials | Core integrity fell below 50% 5997 | -8/Materials | Discovered new exit (range 8) 6154 | -8/Materials | Learned Factory repair station intel 6227 | -8/Materials | Learned location of 1 exit from Storage 6291 | -8/Materials | Learned 4 Factory zone layouts 6344 | -8/Materials | Identified exit to Factory 6385 | -8/Materials | Learned location of Lower Caves (-7) 6417 | -8/Materials | Learned location of 2 exits from Factory 6457 | -8/Materials | Learned Storage garrison access intel 6505 | -8/Materials | Learned location of 1 exit from Extension 6524 | -8/Materials | Entered Factory 6524 | -7/Factory | Evolved 2 slots: Power x1, Utility x1 6525 | -7/Factory | Identified exit to Storage 6526 | -7/Factory | Identified exit to Lower Caves 6526 | -7/Factory | Identified exit to Factory 6528 | -7/Factory | Loaded intel: 6 repair station locations 6882 | -7/Factory | Fabricated Multitool? 7056 | -7/Factory | Build established: Scavenger-Mutant 7324 | -7/Factory | First assault squad dispatched 8167 | -7/Factory | System corruption reached 10% 8173 | -7/Factory | Entered Lower Caves 8194 | -7/Lower Caves | Found Prototype Device 8194 | -7/Lower Caves | Identified Heart of Steel 8223 | -7/Lower Caves | Met a Warlord Commander 8224 | -7/Lower Caves | Learned location of Warlord (-4) 8225 | -7/Lower Caves | Warlord Commander delivered Encrypted Comm Array 8241 | -7/Lower Caves | Found Encrypted Comm Array 8460 | -7/Lower Caves | Encountered a Warlord checkpoint 8520 | -7/Lower Caves | Spotted B-75 Beast 8811 | -7/Lower Caves | Lost 3 parts (2n1u) 9112 | -7/Lower Caves | Attracted the attention of an 0b10 base 9158 | -7/Lower Caves | Destroyed 12 combat bots 9188 | -7/Lower Caves | Lost 4 parts (1p3n) 9225 | -7/Lower Caves | Learned Factory trap positions 9235 | -7/Lower Caves | Identified exit to Lower Caves 9235 | -7/Lower Caves | Learned Research emergency access door positions 9235 | -7/Lower Caves | Learned Factory security intel 9443 | -7/Lower Caves | Learned 4 Factory zone layouts 9464 | -7/Lower Caves | Build established: Mutant 9589 | -7/Lower Caves | Entered another Lower Caves area 10100 | -7/Lower Caves | Discovered exit to Factory (range 9) 10650 | -7/Lower Caves | Entered an active Warlord outpost 10706 | -7/Lower Caves | Learned Extension trap positions 11150 | -7/Lower Caves | Attracted the attention of an 0b10 checkpoint 11545 | -7/Lower Caves | Discovered new exit (range 12) 11756 | -7/Lower Caves | Entered Zion 11946 | -7/Zion | System corruption cleaned by Quarantine Array 12179 | -7/Zion | Discovered new exit (range 15) 12747 | -7/Zion | Given the Hacking Drone Bay 12747 | -7/Zion | Found Prototype Device 12759 | -7/Zion | Identified Hacking Drone Bay 12902 | -7/Zion | Met Imprinter 13239 | -7/Zion | Learned location of Quarantine (-3) 13364 | -7/Zion | Received a hallucinogenic algorithm 13948 | -7/Zion | Build established: Derelict-Mutant 14242 | -7/Zion | Entered Proximity Caves 14610 | -6/Proximity Caves | Lost 4 parts (2n2w) 15567 | -6/Proximity Caves | Attracted the attention of an 0b10 outpost 15650 | -6/Proximity Caves | Core integrity fell below 50% 15655 | -6/Proximity Caves | Destroyed 8 combat bots 15695 | -6/Proximity Caves | Lost 8 parts (1p3n2u2w) 15749 | -6/Proximity Caves | System corruption reached 30% 16007 | -6/Proximity Caves | Entered Factory 16007 | -6/Factory | Accompanied by 2 allies 16007 | -6/Factory | Evolved 2 slots: Propulsion x1, Utility x1 16008 | -6/Factory | Identified exit to Factory 16008 | -6/Factory | Identified exit to Lower Caves 16010 | -6/Factory | Loaded intel: 104 trap records 16029 | -6/Factory | Build established: Scavenger-Mutant 16912 | -6/Factory | Identified exit to Garrison 16925 | -6/Factory | Entered Garrison 17337 | -6/Garrison | Build established: Hacker-Mutant 17414 | -6/Garrison | Found Unknown Device 17414 | -6/Garrison | Identified Quantum Capacitor 17541 | -6/Garrison | Spotted B-75 Beast 17944 | -6/Garrison | Spotted B-75 Beast 17989 | -6/Garrison | Destroyed B-75 Beast 18215 | -6/Garrison | Triggered checkpoint 18254 | -6/Garrison | Garrison Relay disabled 18259 | -6/Garrison | Build established: Scavenger-Mutant 18386 | -6/Garrison | Discovered new exit (range 14) 18768 | -6/Garrison | Build established: Mutant 18769 | -6/Garrison | Triggered checkpoint 18820 | -6/Garrison | Garrison Relay disabled 19324 | -6/Garrison | Build established: Scavenger-Mutant 19378 | -6/Garrison | Discovered new exit (range 12) 19398 | -6/Garrison | Identified exit to Factory 19402 | -6/Garrison | Entered Factory 19786 | -6/Factory | Allied Derelicts emerged from ambush trap array 19879 | -6/Factory | Discovered new exit (range 6) 19880 | -6/Factory | Identified exit to Extension 20039 | -6/Factory | Lost 5 parts (1p1n2u1w) 20472 | -6/Factory | Repaired Cld. VTOL Module 20585 | -6/Factory | Entered Extension 20587 | -6/Extension | Loaded intel: 14 trap records 21081 | -6/Extension | Rescued a captive Derelict 21254 | -6/Extension | Rescued a captive Derelict 21266 | -6/Extension | Rescued a captive Derelict 21284 | -6/Extension | Rescued a captive Derelict 21482 | -6/Extension | Spotted B-75 Beast 21487 | -6/Extension | Allies destroyed B-75 Beast 21499 | -6/Extension | Spotted B-75 Beast 21514 | -6/Extension | Allies destroyed B-75 Beast 21611 | -6/Extension | Rescued A7 21656 | -6/Extension | Rescued a captive Derelict 21656 | -6/Extension | Rescued a captive Derelict 21717 | -6/Extension | Rescued a captive Derelict 21718 | -6/Extension | Rescued a captive Derelict 21884 | -6/Extension | Rescued a captive Derelict 21961 | -6/Extension | Discovered new exit (range 6) 21998 | -6/Extension | Entered Cetus 21998 | -6/Cetus | Accompanied by 8 allies (A7) 22003 | -6/Cetus | Acquired a Cetus Manufacturing Module code from A7 22020 | -6/Cetus | Spotted Cetus Guard 22020 | -6/Cetus | Spotted Cetus Guard 22022 | -6/Cetus | Spotted Cetus Guard 22024 | -6/Cetus | Spotted Cetus Guard 22034 | -6/Cetus | Allies destroyed Cetus Guard 22044 | -6/Cetus | Allies destroyed Cetus Guard 22045 | -6/Cetus | Allies destroyed Cetus Guard 22046 | -6/Cetus | Allies destroyed Cetus Guard 22075 | -6/Cetus | Lost 3 allies 22107 | -6/Cetus | System corruption reached 10% 22153 | -6/Cetus | Started Cetus Manufacturing Module 22173 | -6/Cetus | Discovered new exit (range 16) 22178 | -6/Cetus | Manufactured an Enhanced Grunt 22202 | -6/Cetus | Spotted Cetus Guard 22203 | -6/Cetus | Manufactured an Enhanced Grunt 22203 | -6/Cetus | Spotted Cetus Guard 22207 | -6/Cetus | Spotted Cetus Guard 22207 | -6/Cetus | Spotted Cetus Guard 22214 | -6/Cetus | Allies destroyed Cetus Guard 22215 | -6/Cetus | Destroyed Cetus Guard 22227 | -6/Cetus | Allies destroyed Cetus Guard 22228 | -6/Cetus | Manufactured an Enhanced Grunt 22235 | -6/Cetus | Allies destroyed Cetus Guard 22243 | -6/Cetus | Discovered exit to Factory (range 16) 22253 | -6/Cetus | Manufactured an Enhanced Grunt 22253 | -6/Cetus | Met Revision 17 22278 | -6/Cetus | Manufactured an Enhanced Grunt 22380 | -6/Cetus | Murdered A7 22383 | -6/Cetus | Extracted ID and sensor layout for unrecognized location from A7's data core 22404 | -6/Cetus | Entered Archives 22404 | -6/Archives | Accompanied by 8 allies 22463 | -6/Archives | Lost 3 allies 22464 | -6/Archives | Discovered new exit (range 16) 22500 | -6/Archives | Discovered exit to Factory (range 15) 22568 | -6/Archives | Discovered new exit (range 16) 23051 | -6/Archives | Found Prototype Device 23051 | -6/Archives | Identified Exp. Thermal Shield 23320 | -6/Archives | Identified exit to Hub_04(d) 24876 | -6/Archives | Entered Hub_04(d) 24876 | -6/Hub_04(d) | Accompanied by 5 allies 25205 | -6/Hub_04(d) | P-60 Hacker assimilated allied WT-K1Z(g) 25341 | -6/Hub_04(d) | Network Hub disabled 25362 | -6/Hub_04(d) | Spotted Lightning 25366 | -6/Hub_04(d) | Spotted Lightning 25371 | -6/Hub_04(d) | Spotted Lightning 25391 | -6/Hub_04(d) | Lost 4 allies 25404 | -6/Hub_04(d) | Destroyed Lightning 25418 | -6/Hub_04(d) | Core integrity fell below 50% 25422 | -6/Hub_04(d) | Destroyed Lightning 25441 | -6/Hub_04(d) | Destroyed Lightning 25450 | -6/Hub_04(d) | Found Prototype Device 25450 | -6/Hub_04(d) | Identified Exp. EM Disruption Field 25485 | -6/Hub_04(d) | Found Prototype Energy Cannon 25485 | -6/Hub_04(d) | Identified EMDS 25498 | -6/Hub_04(d) | Found Prototype Processor 25505 | -6/Hub_04(d) | Found EMDS 25675 | -6/Hub_04(d) | Identified Exp. Targeting Computer 25746 | -6/Hub_04(d) | Spotted Lightning 25746 | -6/Hub_04(d) | Spotted Lightning 25746 | -6/Hub_04(d) | Spotted Lightning 25757 | -6/Hub_04(d) | Network Hub disabled 25773 | -6/Hub_04(d) | Destroyed Lightning 25776 | -6/Hub_04(d) | Destroyed Lightning 25776 | -6/Hub_04(d) | Destroyed Lightning 25804 | -6/Hub_04(d) | Found Prototype Device 25805 | -6/Hub_04(d) | Identified Exp. Phase Shifter 25813 | -6/Hub_04(d) | Found EMDS 25818 | -6/Hub_04(d) | Found Exp. EM Disruption Field 25842 | -6/Hub_04(d) | Found EMDS 26051 | -6/Hub_04(d) | Spotted B-75 Beast 26073 | -6/Hub_04(d) | Destroyed B-75 Beast 26202 | -6/Hub_04(d) | Network Hub disabled 26269 | -6/Hub_04(d) | Entered Factory 26269 | -5/Factory | Evolved 2 slots: Utility x2 26329 | -5/Factory | Allied Derelicts emerged from ambush trap array 26798 | -5/Factory | Destroyed 7 combat bots 26808 | -5/Factory | Lost 8 parts (3n3u2w) 26822 | -5/Factory | System corruption reached 10% 27107 | -5/Factory | Discovered new exit (range 11) 27129 | -5/Factory | Identified exit to Factory 27245 | -5/Factory | Cargo convoy interrupted 27978 | -5/Factory | Specialist reinforcements revealed to be Infiltrators 28283 | -5/Factory | Identified exit to Garrison 28283 | -5/Factory | Entered Garrison 28579 | -5/Garrison | Heavy support dispatched to Factory 28709 | -5/Garrison | Triggered checkpoint 28726 | -5/Garrison | Garrison Relay disabled 28754 | -5/Garrison | Build established: Mutant 28794 | -5/Garrison | Spotted B-75 Beast 29055 | -5/Garrison | Heavy support dispatched to Factory 29125 | -5/Garrison | Destroyed B-75 Beast 29243 | -5/Garrison | Triggered checkpoint 29433 | -5/Garrison | Discovered new exit (range 10) 29459 | -5/Garrison | Build established: Scavenger-Mutant 29587 | -5/Garrison | Triggered checkpoint 29611 | -5/Garrison | Triggered checkpoint 29637 | -5/Garrison | Triggered checkpoint 29668 | -5/Garrison | Garrison Relay disabled 29817 | -5/Garrison | Lost 3 allies 29977 | -5/Garrison | Triggered checkpoint 30023 | -5/Garrison | Garrison Relay disabled 30417 | -5/Garrison | Discovered new exit (range 14) 30463 | -5/Garrison | Identified exit to Factory 30506 | -5/Garrison | Heavy support dispatched to Factory 30675 | -5/Garrison | Discovered exit to Factory (range 15) 30740 | -5/Garrison | H-XX Assembler disabled 31164 | -5/Garrison | Entered Factory 31464 | -5/Factory | First assault squad dispatched 31999 | -5/Factory | Found Imp. Powered Armor 32003 | -5/Factory | Found Imp. Powered Armor 32007 | -5/Factory | Found Imp. Powered Armor 32191 | -5/Factory | Spotted B-75 Beast 32519 | -5/Factory | Destroyed 8 combat bots 32559 | -5/Factory | Build established: Hauler-Mutant 32758 | -5/Factory | Identified exit to Garrison 32758 | -5/Factory | Entered Garrison 32812 | -5/Garrison | Triggered checkpoint 32841 | -5/Garrison | Garrison Relay disabled 32844 | -5/Garrison | Triggered checkpoint 32977 | -5/Garrison | Core integrity fell below 50% 32987 | -5/Garrison | Spotted B-75 Beast 33087 | -5/Garrison | Attached Powered Cannon, gained temporary slot: Power 33105 | -5/Garrison | Destroyed B-75 Beast 33165 | -5/Garrison | Build established: Scavenger-Mutant 33536 | -5/Garrison | Core integrity fell below 20% 33587 | -5/Garrison | Lost 4 parts (2p1n1u) 33588 | -5/Garrison | Triggered checkpoint 33677 | -5/Garrison | Discovered new exit (range 10) 33696 | -5/Garrison | Identified exit to Factory 33732 | -5/Garrison | Triggered checkpoint 33757 | -5/Garrison | Garrison Relay disabled 33788 | -5/Garrison | Entered Factory 34035 | -5/Factory | Identified exit to DSF 34035 | -5/Factory | Entered DSF 34039 | -5/DSF | Build established: Hauler-Mutant 34145 | -5/DSF | Additional patrols routed to DSF 34185 | -5/DSF | Discovered exit to Factory (range 12) 34211 | -5/DSF | Entered Factory 34211 | -4/Factory | Evolved 2 slots: Propulsion x1, Utility x1 34241 | -4/Factory | Lost 3 parts (2n1u) 34286 | -4/Factory | Allied Derelicts emerged from ambush trap array 34338 | -4/Factory | Discovered new exit (range 8) 34371 | -4/Factory | Local machine network offline 34399 | -4/Factory | Identified exit to Upper Caves 34419 | -4/Factory | Lost 3 allies 34466 | -4/Factory | Entered Upper Caves 35010 | -4/Upper Caves | Learned location of 1 exit from Research 35469 | -4/Upper Caves | Attracted the attention of an 0b10 outpost 36615 | -4/Upper Caves | Discovered new exit (range 8) 36625 | -4/Upper Caves | Identified exit to Upper Caves 36627 | -4/Upper Caves | Entered another Upper Caves area 36627 | -4/Upper Caves | Accompanied by 2 allies 36677 | -4/Upper Caves | Learned location of 1 exit from Research 37959 | -4/Upper Caves | Learned location of Testing (-2) 38164 | -4/Upper Caves | Discovered new exit (range 7) 38176 | -4/Upper Caves | Identified exit to Warlord 38431 | -4/Upper Caves | Entered Warlord 38516 | -4/Warlord | System corruption cleaned by Quarantine Array 38742 | -4/Warlord | Met Warlord 38767 | -4/Warlord | Warlord's base attacked by MAIN.C 39117 | -4/Warlord | Warlord forces counterattacked 39200 | -4/Warlord | Found Prototype Energy Gun 39200 | -4/Warlord | Identified Vortex Rail 39204 | -4/Warlord | Found Vortex Rail 39212 | -4/Warlord | Found Vortex Rail 39297 | -4/Warlord | Found Exp. Phase Shifter 39307 | -4/Warlord | Found Prototype Reactor 39307 | -4/Warlord | Identified Vortex Chain Reactor 39327 | -4/Warlord | Found Prototype Hackware 39442 | -4/Warlord | Warlord base infiltrated, sounded retreat 39453 | -4/Warlord | Spotted Executioner 39458 | -4/Warlord | Spotted Striker 39569 | -4/Warlord | Spotted Striker 39574 | -4/Warlord | Spotted Executioner 39578 | -4/Warlord | Destroyed Executioner 39601 | -4/Warlord | Destroyed 12 combat bots 39617 | -4/Warlord | Discovered new exit (range 14) 39644 | -4/Warlord | Identified exit to Proximity Caves 39646 | -4/Warlord | Entered Proximity Caves 40107 | -3/Proximity Caves | Attracted the attention of an 0b10 checkpoint 40351 | -3/Proximity Caves | Spotted B-86 Titan 40429 | -3/Proximity Caves | Destroyed B-86 Titan 40507 | -3/Proximity Caves | Discovered new exit (range 6) 40519 | -3/Proximity Caves | Identified exit to Research 40575 | -3/Proximity Caves | Entered Research 40575 | -3/Research | Evolved 2 slots: Power x1, Utility x1 40576 | -3/Research | Identified exit to Research 40668 | -3/Research | Identified exit to Quarantine 40775 | -3/Research | Revision forces began assault on 0b10 40818 | -3/Research | Spotted B-86 Titan 40835 | -3/Research | Met up with Revision 17++ 41225 | -3/Research | Local machine network offline 41275 | -3/Research | Research terminal network offline 41393 | -3/Research | Found Hvy. Reflective Plating 41503 | -3/Research | Lost 5 allies 41763 | -3/Research | Found Prototype Processor 41764 | -3/Research | Identified Exp. Core Analyzer 41780 | -3/Research | Found Exp. Targeting Computer 41806 | -3/Research | Spotted Striker 41828 | -3/Research | Spotted Striker 41830 | -3/Research | Spotted Striker 41835 | -3/Research | Lost 8 allies 41897 | -3/Research | Entered Quarantine 42058 | -3/Quarantine | Found Alien Reactor 42058 | -3/Quarantine | Identified Matter Drive 42173 | -3/Quarantine | Found Alien Artifact 42173 | -3/Quarantine | Identified Core Reset Matrix 42173 | -3/Quarantine | Used Core Reset Matrix 42177 | -3/Quarantine | Detected hypermatrix surge 42177 | -3/Quarantine | Sensed 6 artifacts in vicinity 42366 | -3/Quarantine | Local machine network offline 42483 | -3/Quarantine | Met incapacitated Sigix Warrior 42483 | -3/Quarantine | Lockdown squad dispatched 42517 | -3/Quarantine | Build established: Scavenger-Mutant 43052 | -3/Quarantine | Found Core Stripper 43233 | -3/Quarantine | Spotted Fortress 43246 | -3/Quarantine | Destroyed Fortress 43255 | -3/Quarantine | Found Vortex Chain Reactor 43292 | -3/Quarantine | Found Prototype Device 43293 | -3/Quarantine | Identified Thermal Barrier 43307 | -3/Quarantine | Found Unknown Protection 43309 | -3/Quarantine | Identified Hvy. Insulated Plating 43314 | -3/Quarantine | Found Prototype Protection 43314 | -3/Quarantine | Identified Centrium Heavy Armor Plating 43324 | -3/Quarantine | Found Prototype Device 43324 | -3/Quarantine | Identified Exp. Force Field 43373 | -3/Quarantine | Found Vortex Chain Reactor 43552 | -3/Quarantine | Build established: Hauler-Mutant 43595 | -3/Quarantine | Discovered new exit (range 6) 43602 | -3/Quarantine | Identified exit to Section 7 43730 | -3/Quarantine | Entered Section 7 43731 | -3/Section 7 | Detected hypermatrix surge 43731 | -3/Section 7 | Sensed 20 artifacts in vicinity 44031 | -3/Section 7 | Found Corrupted Unknown Device 44188 | -3/Section 7 | Scanned by Researcher 44394 | -3/Section 7 | Identified Quantum Capacitor 44395 | -3/Section 7 | System corruption reached 10% 44443 | -3/Section 7 | Destroyed 7 combat bots 44482 | -3/Section 7 | Found Spacefold Activator 44522 | -3/Section 7 | Found Integrated Reactor 44523 | -3/Section 7 | Installed Integrated Reactor, increased core energy generation (+10) 44583 | -3/Section 7 | Discovered exit to Research (range 13) 44652 | -3/Section 7 | Found Integrated Mediator 44652 | -3/Section 7 | Installed Integrated Mediator, increased core attachment efficiency 44655 | -3/Section 7 | Spotted B-86 Titan 44678 | -3/Section 7 | Intercept squad dispatched 44678 | -3/Section 7 | Spotted Tracker 44680 | -3/Section 7 | Spotted Combat Programmer 44735 | -3/Section 7 | Destroyed Combat Programmer 44762 | -3/Section 7 | Identified Ghost Barrier 44777 | -3/Section 7 | Entered Research 44777 | -2/Research | Warlord forces began assault on 0b10 44777 | -2/Research | Evolved 2 slots: Utility x2 44794 | -2/Research | Lost 6 parts (2p1n2u1w) 44802 | -2/Research | Distinguished unit "Smaug Mourners" dispatched to help 44802 | -2/Research | Distinguished unit "Knights of the Pentagonal Table" dispatched to help 44807 | -2/Research | Identified exit to Garrison 44809 | -2/Research | Entered Garrison 44888 | -2/Garrison | Spotted B-90 Cyclops 44913 | -2/Garrison | Triggered checkpoint 44925 | -2/Garrison | Discovered new exit (range 12) 44931 | -2/Garrison | Attempted to access garrison exit controls, blocked by remote lockdown 44941 | -2/Garrison | Core integrity fell below 50% 44959 | -2/Garrison | Triggered checkpoint 44965 | -2/Garrison | Core integrity fell below 20% 44968 | -2/Garrison | Destroyed by B-90 Cyclops with Nova Cannon Last Messages --------------- controls... 44931_ Remote lockdown engaged. 44931_ Adv. Hacking Suite destroyed. 44933_ Slammed into S-43 Plague. 44941_ Ghost Barrier destroyed. 44953_ Connecting with Garrison Terminal... >>Download(Navigation) Retrieving Research patrol records... Downloaded protocol data. Feedback: System corruption (+1%). 44953_ ALERT: Suspicious activity at Terminal G003. Transmitting hostile system tracking data. 44957_ Spacefolded through Reinforced Barrier. 44958_ C-30 ARC bursts open, deploying its payload. 44958_ G-73 Enforcer unfolds itself. 44959_ Spacefolded through Wall. 44964_ Spacefolded through S-43 Plague. 44967_ Spacefolded through B-90 Cyclops. Map ----- +----------------------------------------------------+ | ??# #???????????????????????????????????????????? | | ??# #???????????????????????????????????????????? | | ??# #??????##???????????????????????????????????? | | ### ########"##?????????????????????????????????? | | #?????????????????????????????????? | | ### #?????????????????????????????????? | | ??# ######## ##?????? ????????????????????????? | | ### #??????# "#?????? ????????????????????????? | | " #?????## ##?????? ????????????????????????? | | ### #??????+ #??????? #???????????????????????? | | ??# #??????# #??????? #???????????????????????? | | ??# #??????# ######## #???????????????????????? | | ??# #?????## ## ## #???????????????????????? | | ??# #?????#" ## ## ##??????????????????????? | | ??# ####### #####??????????????????? | | ??# ???????????????? | | ??# ???????????????? | | ??########## ## ## ####???????????????????? | | ?????????### ## ## ###????????????????????? | | ?????????# #????????????????????? | | ?????????# #????????????????????? | | ?????????# #????????????????????? | | ?????????# #????????????????????? | | ?????????### ## ## ###??##????????????????? | | ?????????### ## ## #####;####?????????????? | | ???????? ^ @ BB s#############?? | | ???????? BB sss+ "#?? | | ????????#### ###;+##g ###########%#?? | | ???????????## ## ## ##?## ?# #?????????# #?? | | ????????????# ?# ## #???? ?# #?????????# #?? | | ????????????# ??####### #???? ## #?????????#/#?? | | ????????????#?????????# #???? ## #????????# #? | | ??????????????????????# #?????## ##########"""## | | ??????????????????????# #??????+ / + | | ??????????????????????# #??????# ##### ######### | | ??????????????????????# ######## #???# #???????# | | ??????????????????????# ##### #???????# | | ??????????????????????# #???????# | | ??????????????????????########### #######???????# | | ????????????????????????????????# #?????????????# | | ????????????????????????????????# #?????????????# | | ????????????????????????????????# #?????????????? | | ????????????????????????????????# #?????????????? | | ????????????????????????????????# #?????????????? | | ????????????????????????????????# ##############? | | ????????????????????????????????# #? | | ????????????????????????????????# #? | | ????????????????????????????????####### #### < #? | | ??????????????????????????????????????# #??# #? | | ??????????????????????????????????????# #??#####? | +----------------------------------------------------+ Best States ------------- Heat Dissipation 97 Energy Generation 81 Energy Capacity 1040 Matter Stores 300 Matter Capacity 300 Sight Range 22 Robot Scan Range 16 Terrain Scan Range 24 Terrain Scan Density 210 Jamming Range 12 Cloak Strength 2 Power Amplification 20 Additional Mass Support 16 Base Temperature (-) 150 EM Shielding 4 Armor Coverage 1650 Resistance: TH 25 Resistance: EM 75 Core Shielding 30 Weapon Shielding 90 Point Defense Rating 160 Phase Shifting 20 Evasion (%) 70 Targeting Accuracy 12 Core Analysis 8 Recoil Reduction 6 Matter Filtering 30 Offensive Hacking 56 Defensive Hacking 20 Authchip Count 2 Item Schematics ----------------- Imp. Energy Mantle | -3/Section 7 | Archive Helical Railgun | -3/Section 7 | Archive Thunder Hammer | -3/Section 7 | Archive Exp. Cooling System | -3/Section 7 | Archive Cld. Proton Cannon | -3/Section 7 | Archive Coolant Network | -3/Section 7 | Archive Electron Diverter | -3/Section 7 | Archive Robot Schematics ------------------ T-07 Excavator | -3/Section 7 | Archive B-74 Champion | -3/Section 7 | Archive Fabricated ------------ Multitool | x1 | -7/Factory Repaired ---------- Cld. VTOL Module | 6% | -6/Factory Alien Tech Used ----------------- Matter Drive Core Reset Matrix Core Stripper Integrated Reactor Integrated Mediator Spacefold Activator Achievements -------------- None Challenges ------------ None Game ------ Seed SkeletonSalvageHumpback Manual? 0 Play Time 07:00:10 Cumulative 474.9 hours Start 2024.11.17 @ 22:12:40 End 2024.11.19 @ 22:41:56 Sessions 13 Manual Loads 0 Difficulty Rogue Special Mode None Game No. 315 Rogue 310 Adventurer 5 Explorer 0 Win Type - Total 11 Types 5/0/5/0/0/0/1/0/0 Lore% 80 Gallery% 90 Achievement% 76 Wizard Run 0 Options --------- Layout 2 ASCII 0 Keyboard 0 Movement Mouse Keybinds 0 Fullscreen 2 Font 24/Smallcaps Map View 50x44 Zoom Use 0% Tactical HUD 1 Map Filters NONE Filters NONE Steam 1 RUN: 7b0ea916-3bfb-460b-a27f-39157332e059